Workbook

Sheet Main Table
A1: OMTR Ownership | B1: Category | C1: Stage | D1: Priority | E1: Name | F1: Technology Type | G1: Strat Alliances | H1: Status (1 to 5) | I1: Closed Date | J1: Closed By | K1: Announcement | L1: Announced | M1: Geo Region | N1: Comments | X1: Genesis Strategic Partnerships
A2: (Potential BD Leads) | B2: New Partner Pipeline | C2: J - No Contact | D2: III - Reactive Management | E2: Alldigitalnet | F2: eCommerce Platform | G2: Channel | H2: 1 | I2: Not Closed | J2: Not Closed | K2: 5 - N/A | L2: N/A | M2: North America
A3: Channel Sales | B3: New Partner Pipeline | C3: J - No Contact | D3: III - Reactive Management | E3: Conversion Multiplier | F3: eCommerce Platform | G3: Channel | H3: 1 | I3: Not Closed | J3: Not Closed | K3: 5 - N/A | L3: N/A | M3: North America
A4: Client: | B4: New Partner Pipeline | C4: J - No Contact | D4: III - Reactive Management | E4: Ecetera | F4: eCommerce Platform | G4: Channel | H4: 1 | I4: Not Closed | J4: Not Closed | K4: 5 - N/A | L4: N/A | M4: North America
A5: Channel Sales | B5: New Partner Pipeline | C5: J - No Contact | D5: III - Reactive Management | E5: ROI by WSI | F5: eCommerce Platform | G5: Channel | H5: 1 | I5: Not Closed | J5: Not Closed | K5: 5 - N/A | L5: N/A | M5: North America
A6: Name | B6: Technology | C6: Status | D6: III - Reactive Management | E6: Vindicia | F6: eCommerce Platform | G6: Channel | H6: 1 | I6: Not Closed | J6: Not Closed | K6: 5 - N/A | L6: N/A | M6: North America
A7: Channel Sales | B7: Partner Maintenance | C7: E - Accreditation Queue | D7: I - Focused Management | E7: Business Objects | F7: Business Intelligence | G7: Aaron Watson | H7: 3 | I7: 2008 | J7: John Mellor | K7: 3 - Can't Announce | L7: N/A | M7: North America | N7: Watson/Mellor confirmed - no real press opportunity here yet.
A8: Strategic Alliances | B8: New Partner Pipeline | C8: A - Need to Contact | D8: III - Reactive Management | E8: Autonomy | F8: Site Search / Information Access | G8: Tim Hong | H8: 1 | I8: Not Closed | J8: Not Closed | K8: 5 - N/A | L8: N/A | M8: North America | N8: Sent email no response
A9: Channel Sales | B9: Partner Maintenance | C9: E - Accreditation Queue | D9: III - Reactive Management | E9: Sapient (Bridgetrack) | F9: Display Advertising / Ad Serving | G9: David Humpherys | H9: 3 | I9: 2007 | J9: Channel | K9: 1 - Announced | L9: 7/25/2007 | M9: North America
A10: Channel Sales | B10: Partner Maintenance | C10: E - Accreditation Queue | D10: III - Reactive Management | E10: Sapient (Bridgetrack) | F10: OTF | G10: David Humpherys | H10: 3 | I10: 2007 | J10: Channel | K10: 1 - Announced | L10: 7/25/2007 | M10: North America
A11: Channel Sales | B11: Partner Maintenance | C11: F - Accreditation In Progress | D11: III - Reactive Management | E11: Coradiant | F11: Performance Management | G11: David Humpherys | H11: 4 | I11: 2007 | J11: Aaron Watson | K11: 1 - Announced | L11: 10/23/2007 | M11: North America | N11: Made this integration more efficient on our end, but Coradiant not willing to put resources into using Data Insertion API; selling low volume integrations again - 16 MM daily hits maximum per report suite
A12: Channel Sales | B12: Partner Maintenance | C12: G - Accreditation Complete | D12: I - Focused Management | E12: Move Networks, Inc. | F12: Rich Media / Streaming Video | G12: Channel | H12: 2 | I12: 2008(?) | J12: Channel | K12: 2 - Pending Announcement | L12: N/A | M12: North America
A13: Strategic Alliances | B13: New Partner Pipeline | C13: B - Contact Made | D13: I - Focused Management | E13: BuzzMetrics | F13: Social Media | G13: Tim Hong | H13: 3 | I13: Not Closed | J13: Not Closed | K13: 5 - N/A | L13: N/A | M13: North America
A14: Channel Sales | B14: Partner Maintenance | C14: G - Accreditation Complete | D14: III - Reactive Management | E14: Acumium LLC | F14: eCommerce Platform | G14: Channel | H14: 5 | I14: 2007 | J14: Channel | K14: 1 - Announced | L14: 2007-09-17 | M14: North America
A15: Channel Sales | B15: Partner Maintenance | C15: G - Accreditation Complete | D15: III - Reactive Management | E15: Amazon Enterprise Solutions | F15: eCommerce Platform | G15: Channel | H15: 5 | I15: 2007 | J15: Channel | K15: 1 - Announced | L15: 2007-09-17 | M15: North America
A16: Channel Sales | B16: Partner Maintenance | C16: G - Accreditation Complete | D16: III - Reactive Management | E16: ChannelNet | F16: eCommerce Platform | G16: Channel | H16: 5 | I16: 2007 | J16: Channel | K16: 1 - Announced | L16: 2007-09-17 | M16: North America
A17: Channel Sales | B17: Partner Maintenance | C17: G - Accreditation Complete | D17: III - Reactive Management | E17: Clickability | F17: eCommerce Platform | G17: Channel | H17: 5 | I17: 2008(?) | J17: Channel | K17: 2 - Pending Announcement | L17: N/A | M17: North America
A18: Channel Sales | B18: Partner Maintenance | C18: G - Accreditation Complete | D18: III - Reactive Management | E18: Corsis Technology Group | F18: eCommerce Platform | G18: Channel | H18: 5 | I18: 2008(?) | J18: Channel | K18: 2 - Pending Announcement | L18: N/A | M18: North America
A19: Channel Sales | B19: Partner Maintenance | C19: G - Accreditation Complete | D19: III - Reactive Management | E19: DemandWare | F19: eCommerce Platform | G19: Channel | H19: 5 | I19: 2008(?) | J19: Channel | K19: 2 - Pending Announcement | L19: N/A | M19: North America
A20: Channel Sales | B20: Partner Maintenance | C20: G - Accreditation Complete | D20: III - Reactive Management | E20: Devix | F20: eCommerce Platform | G20: Channel | H20: 5 | I20: 2008(?) | J20: Channel | K20: 2 - Pending Announcement | L20: N/A | M20: North America
A21: Channel Sales | B21: Partner Maintenance | C21: G - Accreditation Complete | D21: III - Reactive Management | E21: DMinSite | F21: eCommerce Platform | G21: Channel | H21: 5 | I21: 2007 | J21: Channel | K21: 1 - Announced | L21: 2007-09-17 | M21: North America
A22: Channel Sales | B22: Partner Maintenance | C22: G - Accreditation Complete | D22: III - Reactive Management | E22: eCommerce Partners | F22: eCommerce Platform | G22: Channel | H22: 5 | I22: 2008(?) | J22: Channel | K22: 2 - Pending Announcement | L22: N/A | M22: North America
A23: Channel Sales | B23: Partner Maintenance | C23: G - Accreditation Complete | D23: III - Reactive Management | E23: Elastic Path Software Inc. | F23: eCommerce Platform | G23: Channel | H23: 5 | I23: 2008(?) | J23: Channel | K23: 2 - Pending Announcement | L23: N/A | M23: North America
A24: Channel Sales | B24: Partner Maintenance | C24: G - Accreditation Complete | D24: III - Reactive Management | E24: Enigmedia | F24: eCommerce Platform | G24: Channel | H24: 5 | I24: 2008(?) | J24: Channel | K24: 2 - Pending Announcement | L24: N/A | M24: North America
A25: Channel Sales | B25: Partner Maintenance | C25: G - Accreditation Complete | D25: III - Reactive Management | E25: EZ Rez Software | F25: eCommerce Platform | G25: Channel | H25: 5 | I25: 2008(?) | J25: Channel | K25: 2 - Pending Announcement | L25: N/A | M25: North America
A26: Channel Sales | B26: Partner Maintenance | C26: G - Accreditation Complete | D26: III - Reactive Management | E26: Fry, Inc. | F26: eCommerce Platform | G26: Channel | H26: 5 | I26: 2007 | J26: Channel | K26: 1 - Announced | L26: 2007-03-29 | M26: North America
A27: Channel Sales | B27: Partner Maintenance | C27: G - Accreditation Complete | D27: III - Reactive Management | E27: GSI Commerce | F27: eCommerce Platform | G27: Channel | H27: 5 | I27: 2005 | J27: Channel | K27: 1 - Announced | L27: 2005-11-02 | M27: North America
A28: Channel Sales | B28: Partner Maintenance | C28: G - Accreditation Complete | D28: III - Reactive Management | E28: Hybris GmbH | F28: eCommerce Platform | G28: Channel | H28: 5 | I28: 2008(?) | J28: Channel | K28: 2 - Pending Announcement | L28: N/A | M28: North America
A29: Channel Sales | B29: Partner Maintenance | C29: G - Accreditation Complete | D29: III - Reactive Management | E29: Juice Media LLC | F29: eCommerce Platform | G29: Channel | H29: 5 | I29: 2008(?) | J29: Channel | K29: 2 - Pending Announcement | L29: N/A | M29: North America
A30: Channel Sales | B30: Partner Maintenance | C30: G - Accreditation Complete | D30: III - Reactive Management | E30: Lagarde | F30: eCommerce Platform | G30: Channel | H30: 5 | I30: 2007 | J30: Channel | K30: 1 - Announced | L30: 2007-09-17 | M30: North America
A31: Channel Sales | B31: Partner Maintenance | C31: G - Accreditation Complete | D31: III - Reactive Management | E31: Lagniappe Marketing DBA Dministe | F31: eCommerce Platform | G31: Channel | H31: 5 | I31: 2008(?) | J31: Channel | K31: 2 - Pending Announcement | L31: N/A | M31: North America
A32: Channel Sales | B32: Partner Maintenance | C32: G - Accreditation Complete | D32: III - Reactive Management | E32: Macrovision Corporation | F32: eCommerce Platform | G32: Channel | H32: 5 | I32: 2008(?) | J32: Channel | K32: 2 - Pending Announcement | L32: N/A | M32: North America
A33: Channel Sales | B33: Partner Maintenance | C33: G - Accreditation Complete | D33: III - Reactive Management | E33: MarketBright | F33: eCommerce Platform | G33: Channel | H33: 5 | I33: 2007 | J33: Channel | K33: 1 - Announced | L33: 2007-09-17 | M33: North America
A34: Channel Sales | B34: Partner Maintenance | C34: G - Accreditation Complete | D34: III - Reactive Management | E34: Marketlive | F34: eCommerce Platform | G34: Channel | H34: 5 | I34: 2005 | J34: Channel | K34: 1 - Announced | L34: 2005-09-12 | M34: North America
A35: Channel Sales | B35: Partner Maintenance | C35: G - Accreditation Complete | D35: III - Reactive Management | E35: McClatchy Interactive | F35: eCommerce Platform | G35: Channel | H35: 5 | I35: 2008(?) | J35: Channel | K35: 2 - Pending Announcement | L35: N/A | M35: North America
A36: Channel Sales | B36: Partner Maintenance | C36: G - Accreditation Complete | D36: III - Reactive Management | E36: Media99 LLC | F36: eCommerce Platform | G36: Channel | H36: 5 | I36: 2007 | J36: Channel | K36: 1 - Announced | L36: 2007-09-17 | M36: North America
A37: Channel Sales | B37: Partner Maintenance | C37: G - Accreditation Complete | D37: III - Reactive Management | E37: Mezine | F37: eCommerce Platform | G37: Channel | H37: 5 | I37: 2008(?) | J37: Channel | K37: 2 - Pending Announcement | L37: N/A | M37: North America
A38: Channel Sales | B38: Partner Maintenance | C38: G - Accreditation Complete | D38: III - Reactive Management | E38: Motricity | F38: eCommerce Platform | G38: Channel | H38: 5 | I38: 2007 | J38: Channel | K38: 1 - Announced | L38: 2007-09-17 | M38: North America
A39: Channel Sales | B39: Partner Maintenance | C39: G - Accreditation Complete | D39: III - Reactive Management | E39: Naviataire Inc | F39: eCommerce Platform | G39: Channel | H39: 5 | I39: 2008(?) | J39: Channel | K39: 2 - Pending Announcement | L39: N/A | M39: North America
A40: Channel Sales | B40: Partner Maintenance | C40: G - Accreditation Complete | D40: III - Reactive Management | E40: Novator | F40: eCommerce Platform | G40: Channel | H40: 5 | I40: 2007 | J40: Channel | K40: 1 - Announced | L40: 2007-09-17 | M40: North America
A41: Channel Sales | B41: Partner Maintenance | C41: G - Accreditation Complete | D41: III - Reactive Management | E41: Point & Shop | F41: eCommerce Platform | G41: Channel | H41: 5 | I41: 2008(?) | J41: Channel | K41: 2 - Pending Announcement | L41: N/A | M41: North America
A42: Channel Sales | B42: Partner Maintenance | C42: G - Accreditation Complete | D42: III - Reactive Management | E42: Prosodie Interactive California | F42: eCommerce Platform | G42: Channel | H42: 5 | I42: 2008(?) | J42: Channel | K42: 2 - Pending Announcement | L42: N/A | M42: North America
A43: Channel Sales | B43: Partner Maintenance | C43: G - Accreditation Complete | D43: III - Reactive Management | E43: Rainmaker | F43: eCommerce Platform | G43: Channel | H43: 5 | I43: 2008(?) | J43: Channel | K43: 2 - Pending Announcement | L43: N/A | M43: North America
A44: Channel Sales | B44: Partner Maintenance | C44: G - Accreditation Complete | D44: III - Reactive Management | E44: RichFX | F44: eCommerce Platform | G44: Channel | H44: 5 | I44: 2007 | J44: Channel | K44: 1 - Announced | L44: 2007-09-17 | M44: North America
A45: Channel Sales | B45: Partner Maintenance | C45: G - Accreditation Complete | D45: III - Reactive Management | E45: Saxotech | F45: eCommerce Platform | G45: Channel | H45: 5 | I45: 2007 | J45: Channel | K45: 1 - Announced | L45: 2007-09-17 | M45: North America
A46: Channel Sales | B46: Partner Maintenance | C46: G - Accreditation Complete | D46: III - Reactive Management | E46: Solid Cactus | F46: eCommerce Platform | G46: Channel | H46: 5 | I46: 2008(?) | J46: Channel | K46: 2 - Pending Announcement | L46: N/A | M46: North America
A47: Channel Sales | B47: Partner Maintenance | C47: G - Accreditation Complete | D47: III - Reactive Management | E47: Speedera | F47: eCommerce Platform | G47: Channel | H47: 5 | I47: 2008(?) | J47: Channel | K47: 2 - Pending Announcement | L47: N/A | M47: North America
A48: Channel Sales | B48: Partner Maintenance | C48: G - Accreditation Complete | D48: III - Reactive Management | E48: Synacor | F48: eCommerce Platform | G48: Channel | H48: 5 | I48: 2008(?) | J48: Channel | K48: 2 - Pending Announcement | L48: N/A | M48: North America
A49: Channel Sales | B49: Partner Maintenance | C49: G - Accreditation Complete | D49: III - Reactive Management | E49: Thayer Interactive | F49: eCommerce Platform | G49: Channel | H49: 5 | I49: 2008(?) | J49: Channel | K49: 2 - Pending Announcement | L49: N/A | M49: North America
A50: Channel Sales | B50: Partner Maintenance | C50: G - Accreditation Complete | D50: III - Reactive Management | E50: TIG Global | F50: eCommerce Platform | G50: Channel | H50: 5 | I50: 2007 | J50: Channel | K50: 1 - Announced | L50: 2007-09-17 | M50: North America
A51: Channel Sales | B51: Partner Maintenance | C51: G - Accreditation Complete | D51: III - Reactive Management | E51: TravelCLICK, Inc. | F51: eCommerce Platform | G51: Channel | H51: 5 | I51: 2008(?) | J51: Channel | K51: 2 - Pending Announcement | L51: N/A | M51: North America
A52: Channel Sales | B52: Partner Maintenance | C52: G - Accreditation Complete | D52: III - Reactive Management | E52: Truition | F52: eCommerce Platform | G52: Channel | H52: 5 | I52: 2007 | J52: Channel | K52: 1 - Announced | L52: 2007-09-17 | M52: North America
A53: Channel Sales | B53: Partner Maintenance | C53: G - Accreditation Complete | D53: III - Reactive Management | E53: Vcommerce | F53: eCommerce Platform | G53: Channel | H53: 5 | I53: 2005 | J53: John Mellor | K53: 1 - Announced | L53: 2005-01-25 | M53: North America
A54: Channel Sales | B54: Partner Maintenance | C54: G - Accreditation Complete | D54: III - Reactive Management | E54: Venda | F54: eCommerce Platform | G54: Channel | H54: 5 | I54: 2008(?) | J54: Channel | K54: 2 - Pending Announcement | L54: N/A | M54: North America
A55: Channel Sales | B55: Partner Maintenance | C55: G - Accreditation Complete | D55: III - Reactive Management | E55: Zinio | F55: eCommerce Platform | G55: Channel | H55: 5 | I55: 2008(?) | J55: Channel | K55: 2 - Pending Announcement | L55: N/A | M55: North America
A56: Channel Sales | B56: Partner Maintenance | C56: H - Ongoing Effort Required | D56: I - Focused Management | E56: DoubleClick DFA (Google) | F56: Display Advertising / Ad Serving | G56: Aaron Watson | H56: 4 | I56: 2005 | J56: John Mellor | K56: 1 - Announced | L56: 2006-12-12 | M56: North America | N56: DFA moving to Google platform in Summer; Must migrate integration before ; Watson/Ari to put together project team; Also exploring other integrations (T&T within their ads, universal tag, etc.)
A57: Channel Sales | B57: Partner Maintenance | C57: H - Ongoing Effort Required | D57: I - Focused Management | E57: Vignette | F57: CMS | G57: David Humpherys | H57: 3 | I57: 2007 | J57: John Mellor | K57: 1 - Announced | L57: 2007-04-30 | M57: North America | N57: Channel taking the lead in post Vignette acquisition negotiations - looking at re-doing agreements
A58: Channel Sales | B58: Partner Maintenance | C58: J - No Contact | D58: III - Reactive Management | E58: Fluid | F58: eCommerce Platform | G58: Channel | H58: 1 | I58: Not Closed | J58: Not Closed | K58: 5 - N/A | L58: N/A | M58: North America
A59: Strategic Alliances | B59: New Partner Pipeline | C59: A - Need to Contact | D59: I - Focused Management | E59: Hi Software | F59: Site Auditing / Site Hygiene | G59: Aaron Watson | H59: 3 | I59: Not Closed | J59: Not Closed | K59: 5 - N/A | L59: N/A | M59: North America | N59: Need to reach out for Road to 200.
A60: Strategic Alliances | B60: New Partner Pipeline | C60: A - Need to Contact | D60: I - Focused Management | E60: Lycos | F60: Search Marketing | G60: David Humpherys | H60: 3 | I60: Not Closed | J60: Not Closed | K60: 5 - N/A | L60: N/A | M60: North America
A61: Strategic Alliances | B61: New Partner Pipeline | C61: A - Need to Contact | D61: I - Focused Management | E61: Mamma.com | F61: Search Marketing | G61: David Humpherys | H61: 3 | I61: Not Closed | J61: Not Closed | K61: 5 - N/A | L61: N/A | M61: North America
A62: Strategic Alliances | B62: New Partner Pipeline | C62: A - Need to Contact | D62: I - Focused Management | E62: Snap.com | F62: Search Marketing | G62: David Humpherys | H62: 3 | I62: Not Closed | J62: Not Closed | K62: 5 - N/A | L62: N/A | M62: North America
A63: Strategic Alliances | B63: New Partner Pipeline | C63: A - Need to Contact | D63: I - Focused Management | E63: WatchFire | F63: Site Auditing / Site Hygiene | G63: Aaron Watson | H63: 3 | I63: Not Closed | J63: Not Closed | K63: 5 - N/A | L63: N/A | M63: North America | N63: Need to reach out for Road to 200.
A64: Strategic Alliances | B64: New Partner Pipeline | C64: B - Contact Made | D64: I - Focused Management | E64: Email Direct | F64: Email Marketing | G64: Tim Hong | H64: 2 | I64: Not Closed | J64: Not Closed | K64: 5 - N/A | L64: N/A | M64: North America
A65: Strategic Alliances | B65: New Partner Pipeline | C65: A - Need to Contact | D65: III - Reactive Management | E65: ClickTools | F65: Survey / User Experience | G65: David Humpherys | H65: 3 | I65: Not Closed | J65: Not Closed | K65: 5 - N/A | L65: N/A | M65: North America
A66: Strategic Alliances | B66: New Partner Pipeline | C66: A - Need to Contact | D66: III - Reactive Management | E66: Cognos | F66: Business Intelligence | G66: Aaron Watson | H66: 3 | I66: Not Closed | J66: Not Closed | K66: 5 - N/A | L66: N/A | M66: North America
A67: Strategic Alliances | B67: New Partner Pipeline | C67: A - Need to Contact | D67: III - Reactive Management | E67: RecruitMax | F67: CRM/SFA | G67: David Humpherys | H67: 3 | I67: Not Closed | J67: Not Closed | K67: 5 - N/A | L67: N/A | M67: North America
A68: Strategic Alliances | B68: New Partner Pipeline | C68: A - Need to Contact | D68: III - Reactive Management | E68: RedSail Media | F68: Display Advertising / Ad Serving | G68: David Humpherys | H68: 3 | I68: Not Closed | J68: Not Closed | K68: 5 - N/A | L68: N/A | M68: APAC
A69: Strategic Alliances | B69: New Partner Pipeline | C69: A - Need to Contact | D69: III - Reactive Management | E69: SixRed | F69: CRM/SFA | G69: David Humpherys | H69: 3 | I69: Not Closed | J69: Not Closed | K69: 5 - N/A | L69: N/A | M69: North America
A70: Strategic Alliances | B70: New Partner Pipeline | C70: B - Contact Made | D70: I - Focused Management | E70: 7 Billion People | F70: Other | G70: David Humpherys | H70: 3 | I70: Not Closed | J70: Not Closed | K70: 5 - N/A | L70: N/A | M70: North America
A71: Strategic Alliances | B71: New Partner Pipeline | C71: B - Contact Made | D71: I - Focused Management | E71: 7Search | F71: Search Marketing | G71: David Humpherys | H71: 3 | I71: Not Closed | J71: Not Closed | K71: 5 - N/A | L71: N/A | M71: North America
A72: Strategic Alliances | B72: New Partner Pipeline | C72: B - Contact Made | D72: I - Focused Management | E72: Adap.tv | F72: Rich Media / Streaming Video | G72: David Humpherys | H72: 3 | I72: Not Closed | J72: Not Closed | K72: 5 - N/A | L72: N/A | M72: North America
A73: Strategic Alliances | B73: New Partner Pipeline | C73: B - Contact Made | D73: I - Focused Management | E73: AdJuggler | F73: Display Advertising / Ad Serving | G73: David Humpherys | H73: 3 | I73: Not Closed | J73: Not Closed | K73: 5 - N/A | L73: N/A | M73: North America
A74: Strategic Alliances | B74: New Partner Pipeline | C74: B - Contact Made | D74: I - Focused Management | E74: AdTech | F74: Display Advertising / Ad Serving | G74: David Humpherys | H74: 1 | I74: Not Closed | J74: Not Closed | K74: 5 - N/A | L74: N/A | M74: North America
A75: Strategic Alliances | B75: New Partner Pipeline | C75: B - Contact Made | D75: I - Focused Management | E75: Goolara | F75: Email Marketing | G75: Tim Hong | H75: 3 | I75: Not Closed | J75: Not Closed | K75: 5 - N/A | L75: N/A | M75: North America
A76: Strategic Alliances | B76: New Partner Pipeline | C76: B - Contact Made | D76: II - Proactive Management | E76: Softvu | F76: Email Marketing | G76: Tim Hong | H76: 4 | I76: Not Closed | J76: Not Closed | K76: 5 - N/A | L76: N/A | M76: North America
A77: Strategic Alliances | B77: New Partner Pipeline | C77: B - Contact Made | D77: I - Focused Management | E77: Enquisite | F77: Clickfraud | G77: David Humpherys | H77: 3 | I77: Not Closed | J77: Not Closed | K77: 5 - N/A | L77: N/A | M77: North America
A78: Strategic Alliances | B78: New Partner Pipeline | C78: B - Contact Made | D78: I - Focused Management | E78: Findology | F78: Search Marketing | G78: David Humpherys | H78: 3 | I78: Not Closed | J78: Not Closed | K78: 5 - N/A | L78: N/A | M78: North America
A79: Strategic Alliances | B79: New Partner Pipeline | C79: B - Contact Made | D79: III - Reactive Management | E79: TextDigger | F79: SEO | G79: Tim Hong | H79: 2 | I79: Not Closed | J79: Not Closed | K79: 5 - N/A | L79: N/A | M79: North America | N79: Not a good fit for an integration
A80: Strategic Alliances | B80: New Partner Pipeline | C80: B - Contact Made | D80: I - Focused Management | E80: Kampyle | F80: User Experience | G80: David Humpherys | H80: 3 | I80: Not Closed | J80: Not Closed | K80: 5 - N/A | L80: N/A | M80: North America
A81: Strategic Alliances | B81: New Partner Pipeline | C81: B - Contact Made | D81: I - Focused Management | E81: Kenshoo | F81: Search Marketing | G81: David Humpherys | H81: 1 | I81: Not Closed | J81: Not Closed | K81: 5 - N/A | L81: N/A | M81: North America
A82: Strategic Alliances | B82: New Partner Pipeline | C82: B - Contact Made | D82: I - Focused Management | E82: Oracle (Siebel) | F82: CRM/SFA | G82: David Humpherys | H82: 4 | I82: Not Closed | J82: Not Closed | K82: 5 - N/A | L82: N/A | M82: North America | N82: Let them know that we're releasing new APIs this year; we have the option of doing the integration when we have the resources
A83: Strategic Alliances | B83: New Partner Pipeline | C83: B - Contact Made | D83: I - Focused Management | E83: Volo Media | F83: Rich Media / Streaming Video | G83: David Humpherys | H83: 3 | I83: Not Closed | J83: Not Closed | K83: 5 - N/A | L83: N/A | M83: North America
A84: Strategic Alliances | B84: New Partner Pipeline | C84: B - Contact Made | D84: II - Proactive Management | E84: Aegis Media (Bluestreak ) | F84: Display Advertising / Ad Serving | G84: Aaron Watson | H84: 3 | I84: Not Closed | J84: Not Closed | K84: 5 - N/A | L84: N/A | M84: North America | N84: Dillong engaging Watson
A85: Strategic Alliances | B85: New Partner Pipeline | C85: B - Contact Made | D85: III - Reactive Management | E85: Blue Sky Factory | F85: Email Marketing | G85: Tim Hong | H85: 1 | I85: Not Closed | J85: Not Closed | K85: 5 - N/A | L85: N/A | M85: North America
A86: Strategic Alliances | B86: New Partner Pipeline | C86: B - Contact Made | D86: II - Proactive Management | E86: Level 3 | F86: Content Delivery | G86: David Humpherys | H86: 3 | I86: Not Closed | J86: Not Closed | K86: 5 - N/A | L86: N/A | M86: North America
A87: Strategic Alliances | B87: New Partner Pipeline | C87: B - Contact Made | D87: III - Reactive Management | E87: Targetbase | F87: Other | G87: Tim Hong | H87: 3 | N87: Met at Forrester..follow up
A88: Strategic Alliances | B88: New Partner Pipeline | C88: B - Contact Made | D88: III - Reactive Management | E88: Apogee Search | F88: SEO | G88: Tim Hong | H88: 3 | N88: Met at Bazaarvoice, previous colleague
A89: Strategic Alliances | B89: New Partner Pipeline | C89: B - Contact Made | D89: III - Reactive Management | E89: Boomerang | F89: Email Marketing | G89: Tim Hong | H89: 1 | I89: Not Closed | J89: Not Closed | K89: 5 - N/A | L89: N/A | M89: North America
A90: Strategic Alliances | B90: New Partner Pipeline | C90: B - Contact Made | D90: III - Reactive Management | E90: DemandBase | F90: Other | G90: Tim Hong | H90: 3 | N90: Storefront for Lead purchasing
A91: Strategic Alliances | B91: New Partner Pipeline | C91: B - Contact Made | D91: III - Reactive Management | E91: HookLogic | F91: Email Marketing | G91: Tim Hong | H91: 2 | I91: Not Closed | J91: Not Closed | K91: 5 - N/A | L91: N/A | M91: North America
A92: Strategic Alliances | B92: New Partner Pipeline | C92: B - Contact Made | D92: III - Reactive Management | E92: Leadfusion | F92: Email Marketing | G92: Tim Hong | H92: 1 | I92: Not Closed | J92: Not Closed | K92: 5 - N/A | L92: N/A | M92: North America
A93: Strategic Alliances | B93: New Partner Pipeline | C93: B - Contact Made | D93: II - Proactive Management | E93: Traceworks | F93: Ad Serving | G93: David Humpherys | H93: 4 | I93: Not Closed | J93: Not Closed | K93: 5 - N/A | L93: N/A | M93: EMEA
A94: Strategic Alliances | B94: New Partner Pipeline | C94: B - Contact Made | D94: III - Reactive Management | E94: Adbrite | F94: Ad Network | G94: David Humpherys | H94: 3 | I94: Not Closed | J94: Not Closed | K94: 5 - N/A | L94: N/A | M94: North America
A95: Strategic Alliances | B95: Partner | C95: E - Accreditation Queue | D95: III - Reactive Management | E95: Feedroom | F95: Rich Media / Streaming Video | G95: David Humpherys | H95: 5 | N95: In Lamont's accreditation queue
A96: Strategic Alliances | B96: New Partner Pipeline | C96: B - Contact Made | D96: III - Reactive Management | E96: Leiki | F96: Other | G96: Tim Hong | H96: 1 | I96: Not Closed | J96: Not Closed | K96: 5 - N/A | L96: N/A | M96: EMEA
A97: Strategic Alliances | B97: New Partner Pipeline | C97: B - Contact Made | D97: III - Reactive Management | E97: MarkMonitor | F97: Other | G97: Tim Hong | H97: 2 | I97: Not Closed | J97: Not Closed | K97: 5 - N/A | L97: N/A | M97: North America
A98: Strategic Alliances | B98: New Partner Pipeline | C98: B - Contact Made | D98: III - Reactive Management | E98: Pervasive | F98: Other | G98: Tim Hong | H98: 1 | I98: Not Closed | J98: Not Closed | K98: 5 - N/A | L98: N/A | M98: North America
A99: Strategic Alliances | B99: New Partner Pipeline | C99: B - Contact Made | D99: III - Reactive Management | E99: Technology Solutions | F99: Other | G99: Tim Hong | H99: 1 | I99: Not Closed | J99: Not Closed | K99: 5 - N/A | L99: N/A | M99: North America
A100: Strategic Alliances | B100: New Partner Pipeline | C100: C - Initial Call/Meeting | D100: II - Proactive Management | E100: SilverCreek systems | F100: Data Warehouse | G100: Tim Hong | H100: 3 | N100: Already partnered with Endeca, looking to work with them to replace PDO, waiting for them to respond for followup
A101: Strategic Alliances | B101: New Partner Pipeline | C101: B - Contact Made | D101: III - Reactive Management | E101: CRM Mastery | F101: CRM/SFA | G101: David Humpherys | H101: 3 | I101: Not Closed | J101: Not Closed | K101: 5 - N/A | L101: N/A | M101: North America
A102: Strategic Alliances | B102: New Partner Pipeline | C102: C - Initial Call/Meeting | D102: III - Reactive Management | E102: Bodukai | F102: Other | G102: Tim Hong | H102: 3 | N102: AJAX Merchandising Front-End--referral from Omniture Merchandising
A103: Strategic Alliances | B103: New Partner Pipeline | C103: B - Contact Made | D103: III - Reactive Management | E103: Documentum | F103: CMS | G103: David Humpherys | H103: 3 | I103: Not Closed | J103: Not Closed | K103: 5 - N/A | L103: N/A | M103: North America
A104: Strategic Alliances | B104: New Partner Pipeline | C104: C - Initial Call/Meeting | D104: III - Reactive Management | E104: Prismastar | F104: Site Search / Information Access | G104: Tim Hong | H104: 3 | N104: Ex Mercado employee---company…starting on developer.omniture.com
A105: Strategic Alliances | B105: New Partner Pipeline | C105: C - Initial Call/Meeting | D105: III - Reactive Management | E105: Virtuoz | F105: Chat | G105: Tim Hong | H105: 4 | N105: Virtual Agent technology--joint clients in US and France…interesting
A106: Strategic Alliances | B106: New Partner Pipeline | C106: C - Initial Call/Meeting | D106: III - Reactive Management | E106: Textopoly | F106: RSS/SMS | G106: Tim Hong | H106: 3 | N106: Smaller mobile focused company--potential labs, company too small
A107: Strategic Alliances | B107: New Partner Pipeline | C107: C - Initial Call/Meeting | D107: III - Reactive Management | E107: iCentera | F107: Social Media | G107: Tim Hong | H107: 4 | N107: Portals, Omniture is a customer, they are sponsoring summit
A108: Strategic Alliances | B108: New Partner Pipeline | C108: C - Initial Call/Meeting | D108: III - Reactive Management | E108: Rackspace | F108: Hosting | G108: Tim Hong | H108: 2 | I108: Not Closed | J108: Not Closed | K108: 5 - N/A | L108: N/A | M108: North America
A109: Strategic Alliances | B109: New Partner Pipeline | C109: B - Contact Made | D109: III - Reactive Management | E109: Interclick | F109: Ad Network | G109: David Humpherys | H109: 3 | I109: Not Closed | J109: Not Closed | K109: 5 - N/A | L109: N/A | M109: North America
A110: Strategic Alliances | B110: New Partner Pipeline | C110: B - Contact Made | D110: III - Reactive Management | E110: Island Data | F110: Survey / User Experience | G110: David Humpherys | H110: 3 | I110: Not Closed | J110: Not Closed | K110: 5 - N/A | L110: N/A | M110: North America
A111: Strategic Alliances | B111: New Partner Pipeline | C111: C - Initial Call/Meeting | D111: III - Reactive Management | E111: Adestra | F111: Email Marketing | G111: Tim Hong | H111: 3 | N111: UK Email, recommendation from Return Path, trying to reschedule call, they did not make it to last conference call
A112: Strategic Alliances | B112: New Partner Pipeline | C112: C - Initial Call/Meeting | D112: II - Proactive Management | E112: Attributor | F112: Social Media | G112: Tim Hong | H112: 4 | N112: This seems to be more Product focused…not good fit for Genesis--work with Jordan
A113: Strategic Alliances | B113: New Partner Pipeline | C113: C - Initial Call/Meeting | D113: II - Proactive Management | E113: BuzzLogic | F113: Social Media | G113: Tim Hong | H113: 3 | I113: Not Closed | J113: Not Closed | K113: 5 - N/A | L113: N/A | M113: North America
A114: Strategic Alliances | B114: New Partner Pipeline | C114: B - Contact Made | D114: III - Reactive Management | E114: Limelight | F114: Content Delivery | G114: Aaron Watson | H114: 3 | I114: Not Closed | J114: Not Closed | K114: 5 - N/A | L114: N/A | M114: North America | N114: They're now an OMTR customer
A115: Strategic Alliances | B115: New Partner Pipeline | C115: C - Initial Call/Meeting | D115: II - Proactive Management | E115: Cymfony | F115: Social Media | G115: Tim Hong | H115: 4 | I115: Not Closed | J115: Not Closed | K115: 5 - N/A | L115: N/A | M115: North America | N115: Had follow up call 2/4…very interested…since they are part of WPP, are they automatically a partner? How do I get integration resources?
A116: Strategic Alliances | B116: New Partner Pipeline | C116: B - Contact Made | D116: III - Reactive Management | E116: Mojo | F116: Mobile | G116: David Humpherys | H116: 3 | I116: Not Closed | J116: Not Closed | K116: 5 - N/A | L116: N/A | M116: North America
A117: Strategic Alliances | B117: New Partner Pipeline | C117: B - Contact Made | D117: III - Reactive Management | E117: Percussion Software | F117: CMS | G117: David Humpherys | H117: 4 | I117: Not Closed | J117: Not Closed | K117: 5 - N/A | L117: N/A | M117: North America
A118: Strategic Alliances | B118: New Partner Pipeline | C118: C - Initial Call/Meeting | D118: III - Reactive Management | E118: Email Data Source | F118: Email Marketing | G118: Tim Hong | H118: 2 | I118: Not Closed | J118: Not Closed | K118: 5 - N/A | L118: N/A | M118: North America | N118: First meeting, not good fit for Genesis
A119: Strategic Alliances | B119: New Partner Pipeline | C119: C - Initial Call/Meeting | D119: III - Reactive Management | E119: eWay Direct | F119: Email Marketing | G119: Tim Hong | H119: 3 | I119: Not Closed | J119: Not Closed | K119: 5 - N/A | L119: N/A | M119: North America | N119: Pushed until next year…
A120: Strategic Alliances | B120: New Partner Pipeline | C120: C - Initial Call/Meeting | D120: III - Reactive Management | E120: Kobemail | F120: Email Marketing | G120: Tim Hong | H120: 1 | I120: Not Closed | J120: Not Closed | K120: 5 - N/A | L120: N/A | M120: North America
A121: Strategic Alliances | B121: New Partner Pipeline | C121: C - Initial Call/Meeting | D121: III - Reactive Management | E121: postrelease | F121: Social Media | G121: Tim Hong | H121: 2 | N121: Met WOMMA, not a great fit, keeping warm
A122: Strategic Alliances | B122: New Partner Pipeline | C122: C - Initial Call/Meeting | D122: III - Reactive Management | E122: Satama | F122: Email Marketing | G122: Tim Hong | H122: 1 | I122: Not Closed | J122: Not Closed | K122: 5 - N/A | L122: N/A | M122: EMEA
A123: Strategic Alliances | B123: New Partner Pipeline | C123: C - Initial Call/Meeting | D123: III - Reactive Management | E123: Sysmomos | F123: Social Media | G123: Tim Hong | H123: 2 | N123: Met WOMMA, call on 12/1, not a great fit, keeping warm
A124: Strategic Alliances | B124: New Partner Pipeline | C124: C - Initial Call/Meeting | D124: II - Proactive Management | E124: Techrigy | F124: Social Media | G124: Tim Hong | H124: 4 | N124: Social Media monitoring, acquired Andiamo, had call with CEO--interested-follow up call with Surles
A125: Strategic Alliances | B125: New Partner Pipeline | C125: C - Initial Call/Meeting | D125: III - Reactive Management | E125: Unbound Technologies | F125: Social Media | G125: Tim Hong | H125: 2 | N125: Met WOMMA, had call…somewhat complementary…looking for joint client
A126: Strategic Alliances | B126: New Partner Pipeline | C126: C - Initial Call/Meeting | D126: I - Focused Management | E126: Vertical Response | F126: Email Marketing | G126: Tim Hong | H126: 3 | I126: Not Closed | J126: Not Closed | K126: 5 - N/A | L126: N/A | M126: North America | N126: Allen Keller, small clients…wait until we identify joint clients…
A127: Strategic Alliances | B127: New Partner Pipeline | C127: C - Initial Call/Meeting | D127: I - Focused Management | E127: Vivisimo | F127: Site Search / Information Access | G127: Tim Hong | H127: 2 | N127: Call 11/13, not competitive, pushing to close
A128: Strategic Alliances | B128: New Partner Pipeline | C128: C - Initial Call/Meeting | D128: I - Focused Management | E128: Yovia | F128: Social Media | G128: Tim Hong | H128: 1 | N128: Met WOMMA
A129: Strategic Alliances | B129: New Partner Pipeline | C129: C - Initial Call/Meeting | D129: II - Proactive Management | E129: Jive Software | F129: Social Media | G129: Tim Hong | H129: 3 | N129: Had initial call, they are very interested in integrating..hesitant to pay fees to join
A130: Strategic Alliances | B130: New Partner Pipeline | C130: C - Initial Call/Meeting | D130: II - Proactive Management | E130: ThinkPassenger | F130: Social Media | G130: Tim Hong | H130: 3 | N130: Current Contact left company, reengaging through CEO
A131: Strategic Alliances | B131: New Partner Pipeline | C131: B - Contact Made | D131: III - Reactive Management | E131: RedDot | F131: CMS | G131: David Humpherys | H131: 3 | I131: Not Closed | J131: Not Closed | K131: 5 - N/A | L131: N/A | M131: North America
A132: Strategic Alliances | B132: New Partner Pipeline | C132: C - Initial Call/Meeting | D132: II - Proactive Management | E132: Adestra | F132: Email Marketing | G132: Tim Hong | H132: 3 | N132: Referral from ReturnPath and client request
A133: Strategic Alliances | B133: New Partner Pipeline | C133: B - Contact Made | D133: III - Reactive Management | E133: TreeHouse | F133: Data Warehouse | G133: Aaron Watson | H133: 1 | I133: Not Closed | J133: Not Closed | K133: 5 - N/A | L133: N/A | M133: North America
A134: Strategic Alliances | B134: New Partner Pipeline | C134: B - Contact Made | D134: III - Reactive Management | E134: TruEffect | F134: Display Advertising / Ad Serving | G134: David Humpherys | H134: 3 | I134: Not Closed | J134: Not Closed | K134: 5 - N/A | L134: N/A | M134: North America
A135: Strategic Alliances | B135: New Partner Pipeline | C135: B - Contact Made | D135: III - Reactive Management | E135: Viewpoint | F135: Display Advertising / Ad Serving | G135: David Humpherys | H135: 3 | I135: Not Closed | J135: Not Closed | K135: 5 - N/A | L135: N/A | M135: North America
A136: Strategic Alliances | B136: New Partner Pipeline | C136: B - Contact Made | D136: III - Reactive Management | E136: Webvisible | F136: Display Advertising / Ad Serving | G136: David Humpherys | H136: 3 | I136: Not Closed | J136: Not Closed | K136: 5 - N/A | L136: N/A | M136: North America
A137: Strategic Alliances | B137: New Partner Pipeline | C137: C - Initial Call/Meeting | D137: II - Proactive Management | E137: InteractiveBuzz | F137: Social Media | G137: Tim Hong | H137: 2 | N137: David H had first call with them
A138: Strategic Alliances | B138: New Partner Pipeline | C138: C - Initial Call/Meeting | D138: II - Proactive Management | E138: itracMEDIA | F138: Email Marketing | G138: Tim Hong | H138: 3 | N138: joint clients asked them to look in to integration
A139: Strategic Alliances | B139: New Partner Pipeline | C139: C - Initial Call/Meeting | D139: III - Reactive Management | E139: Quantivo | F139: Data Warehouse | G139: Tim Hong | H139: 1 | N139: Wade delivered cease and desist letter 6/8/09
A140: Strategic Alliances | B140: New Partner Pipeline | C140: C - Initial Call/Meeting | D140: II - Proactive Management | E140: LazloSystems | F140: Email Marketing | G140: Tim Hong | H140: 2 | N140: Cablevision requested they integrate, they whitelabel webmail
A141: Strategic Alliances | B141: New Partner Pipeline | C141: C - Initial Call/Meeting | D141: II - Proactive Management | E141: Sitening | F141: SEO | G141: Tim Hong | H141: 3 | I141: Not Closed | J141: Not Closed | K141: 5 - N/A | L141: N/A | M141: North America | N141: SEO…They are going to be at summit Kate Oneil is on the T&T CAB
A142: Strategic Alliances | B142: New Partner Pipeline | C142: C - Initial Call/Meeting | D142: II - Proactive Management | E142: TW Connect | F142: Email Marketing | G142: Tim Hong | H142: 2 | I142: Not Closed | J142: Not Closed | K142: 5 - N/A | L142: N/A | M142: EMEA
A143: Strategic Alliances | B143: New Partner Pipeline | C143: C - Initial Call/Meeting | D143: III - Reactive Management | E143: Trillium | F143: Data Warehouse | G143: Tim Hong | H143: 4 | N143: Surles managing
A144: Strategic Alliances | B144: New Partner Pipeline | C144: C - Initial Call/Meeting | D144: III - Reactive Management | E144: DataFlux | F144: Data Warehouse | G144: Tim Hong | H144: 3 | N144: Surles Managing..not best fit
A145: Strategic Alliances | B145: New Partner Pipeline | C145: C - Initial Call/Meeting | D145: I - Focused Management | E145: Parature | F145: Support | G145: David Humpherys | H145: 4 | I145: Not Closed | J145: Not Closed | K145: 5 - N/A | L145: N/A | M145: North America
A146: Strategic Alliances | B146: New Partner Pipeline | C146: C - Initial Call/Meeting | D146: III - Reactive Management | E146: Sailthru | F146: Email Marketing | G146: Tim Hong | H146: 4 | N146: ESP, interested, not ready to pay $10k yet
A147: Strategic Alliances | B147: New Partner Pipeline | C147: C - Initial Call/Meeting | D147: II - Proactive Management | E147: Overtone | F147: Social Media | G147: Tim Hong | H147: 3 | N147: 6/25 Continued interest--sending partner program materials
A148: Strategic Alliances | B148: New Partner Pipeline | C148: C - Initial Call/Meeting | D148: I - Focused Management | E148: Superpages | F148: Search Marketing | G148: David Humpherys | H148: 3 | I148: Not Closed | J148: Not Closed | K148: 5 - N/A | L148: N/A | M148: North America | N148: Superpages hasn't communicated on the integration status recently
A149: Strategic Alliances | B149: New Partner Pipeline | C149: C - Initial Call/Meeting | D149: II - Proactive Management | E149: Scout Labs | F149: Social Media | G149: Tim Hong | H149: 4 | N149: 6/16 On-site meeting with OMTR Corp Dev/Mellor/engineering
A150: Strategic Alliances | B150: New Partner Pipeline | C150: C - Initial Call/Meeting | D150: III - Reactive Management | E150: Cloud Conversion | F150: Other | G150: Tim Hong | H150: 3 | N150: Met at Web2.0, develops apps on Salesforce.com and Ebay..looking for OMTR dev docs
A151: Strategic Alliances | B151: New Partner Pipeline | C151: C - Initial Call/Meeting | D151: III - Reactive Management | E151: HiveLive | F151: Social Media | G151: Tim Hong | H151: 3 | N151: Creates Whitelabel communities..met at Web2.0 Conference
A152: Strategic Alliances | B152: New Partner Pipeline | C152: C - Initial Call/Meeting | D152: III - Reactive Management | E152: OneSite | F152: Social Media | G152: Tim Hong | H152: 3 | N152: Whitelable communities, met at Web2.0 Conference
A153: Strategic Alliances | B153: New Partner Pipeline | C153: C - Initial Call/Meeting | D153: I - Focused Management | E153: USi | F153: eCommerce Platform | G153: Aaron Watson | H153: 3 | N153: Another candidate to replace CrossView. They worked with Mercado in the past. Dialog ongoing, but not as far as Trifecta
A154: Strategic Alliances | B154: New Partner Pipeline | C154: C - Initial Call/Meeting | D154: III - Reactive Management | E154: TamTamy | F154: Social Media | G154: Tim Hong | H154: 3 | N154: Whjitelable communities, met at Web2.0 Conference
A155: Strategic Alliances | B155: New Partner Pipeline | C155: C - Initial Call/Meeting | D155: III - Reactive Management | E155: Effective UI | F155: Other | G155: Tim Hong | H155: 3 | N155: Develops RIA, interested in how they can work with OMTR
A156: Strategic Alliances | B156: New Partner Pipeline | C156: C - Initial Call/Meeting | D156: III - Reactive Management | E156: Zrinity | F156: Email Marketing | G156: Tim Hong | H156: 3 | N156: Initial Call, they are On premise, have joint clients asking
A157: Strategic Alliances | B157: New Partner Pipeline | C157: C - Initial Call/Meeting | D157: III - Reactive Management | E157: Media 6 Degrees | F157: Social Media | G157: Tim Hong | H157: 3 | N157: Follow up call scheduled 6/16
A158: Strategic Alliances | B158: New Partner Pipeline | C158: C - Initial Call/Meeting | D158: III - Reactive Management | E158: 24-7 Intouch | F158: Chat | G158: Tim Hong | H158: 1 | I158: Not Closed | J158: Not Closed | K158: 5 - N/A | L158: N/A | M158: North America
A159: Strategic Alliances | B159: New Partner Pipeline | C159: C - Initial Call/Meeting | D159: III - Reactive Management | E159: Agendize | F159: Chat | G159: Tim Hong | H159: 1 | I159: Not Closed | J159: Not Closed | K159: 5 - N/A | L159: N/A | M159: North America
A160: Strategic Alliances | B160: New Partner Pipeline | C160: C - Initial Call/Meeting | D160: III - Reactive Management | E160: Bunchball | F160: Social Media | G160: Tim Hong | H160: 1 | I160: Not Closed | J160: Not Closed | K160: 5 - N/A | L160: N/A | M160: Not
A161: Strategic Alliances | B161: New Partner Pipeline | C161: C - Initial Call/Meeting | D161: II - Proactive Management | E161: Rubicon Project | F161: Display Advertising / Ad Serving | G161: David Humpherys | H161: 2 | N161: Rubicon anxious to announce something together; Scottrade campaign launched but has encountered problems (90% of ads displayed are control)--Siddharth leading the diagnosis & repair
A162: Strategic Alliances | B162: New Partner Pipeline | C162: C - Initial Call/Meeting | D162: III - Reactive Management | E162: CampaignMaster | F162: Email Marketing | G162: Tim Hong | H162: 1 | I162: Not Closed | J162: Not Closed | K162: 5 - N/A | L162: N/A | M162: APAC
A163: Strategic Alliances | B163: New Partner Pipeline | C163: C - Initial Call/Meeting | D163: III - Reactive Management | E163: Eperium | F163: Email Marketing | G163: Tim Hong | H163: 1 | I163: Not Closed | J163: Not Closed | K163: 5 - N/A | L163: N/A | M163: EMEA
A164: Strategic Alliances | B164: New Partner Pipeline | C164: C - Initial Call/Meeting | D164: III - Reactive Management | E164: Gov Delivery | F164: Email Marketing | G164: Tim Hong | H164: 1 | I164: Not Closed | J164: Not Closed | K164: 5 - N/A | L164: N/A | M164: North America
A165: Strategic Alliances | B165: New Partner Pipeline | C165: C - Initial Call/Meeting | D165: III - Reactive Management | E165: Hubpages | F165: Other | G165: Tim Hong | H165: 1 | I165: Not Closed | J165: Not Closed | K165: 5 - N/A | L165: N/A | M165: North America | N165: Hummer Winblad funded
A166: Strategic Alliances | B166: New Partner Pipeline | C166: C - Initial Call/Meeting | D166: III - Reactive Management | E166: Kaboodle | F166: Social Media | G166: Tim Hong | H166: 1 | I166: Not Closed | J166: Not Closed | K166: 5 - N/A | L166: N/A | M166: North America
A167: Strategic Alliances | B167: New Partner Pipeline | C167: C - Initial Call/Meeting | D167: III - Reactive Management | E167: Messagesystems | F167: Email Marketing | G167: Tim Hong | H167: 1 | I167: Not Closed | J167: Not Closed | K167: 5 - N/A | L167: N/A | M167: North America
A168: Strategic Alliances | B168: New Partner Pipeline | C168: C - Initial Call/Meeting | D168: III - Reactive Management | E168: Channel Advisor | F168: Comparison Shopping | G168: David Humpherys | H168: 3 | I168: Not Closed | J168: Not Closed | K168: 5 - N/A | L168: N/A | M168: North America
A169: Strategic Alliances | B169: New Partner Pipeline | C169: C - Initial Call/Meeting | D169: III - Reactive Management | E169: Nextopia | F169: Site Search / Information Access | G169: Tim Hong | H169: 1 | I169: Not Closed | J169: Not Closed | K169: 5 - N/A | L169: N/A | M169: North America | N169: Competitive
A170: Strategic Alliances | B170: New Partner Pipeline | C170: C - Initial Call/Meeting | D170: III - Reactive Management | E170: Gomez | F170: Performance Management | G170: David Humpherys | H170: 3 | I170: Not Closed | J170: Not Closed | K170: 5 - N/A | L170: N/A | M170: North America
A171: Strategic Alliances | B171: New Partner Pipeline | C171: C - Initial Call/Meeting | D171: III - Reactive Management | E171: QMECOM | F171: Rich Media / Streaming Video | G171: Tim Hong | H171: 2 | I171: Not Closed | J171: Not Closed | K171: 5 - N/A | L171: N/A | M171: North America
A172: Strategic Alliances | B172: New Partner Pipeline | C172: C - Initial Call/Meeting | D172: III - Reactive Management | E172: RedSun Systems | F172: Chat | G172: Tim Hong | H172: 1 | I172: Not Closed | J172: Not Closed | K172: 5 - N/A | L172: N/A | M172: North America
A173: Strategic Alliances | B173: New Partner Pipeline | C173: C - Initial Call/Meeting | D173: III - Reactive Management | E173: iMedia Streams | F173: Display Advertising / Ad Serving | G173: David Humpherys | H173: 4 | I173: Not Closed | J173: Not Closed | K173: 5 - N/A | L173: N/A | M173: North America
A174: Strategic Alliances | B174: New Partner Pipeline | C174: C - Initial Call/Meeting | D174: III - Reactive Management | E174: UpSellit | F174: Chat | G174: Tim Hong | H174: 1 | I174: Not Closed | J174: Not Closed | K174: 5 - N/A | L174: N/A | M174: North America
A175: Strategic Alliances | B175: New Partner Pipeline | C175: C - Initial Call/Meeting | D175: III - Reactive Management | E175: Keynote Systems | F175: Performance Management | G175: David Humpherys | H175: 3 | I175: Not Closed | J175: Not Closed | K175: 5 - N/A | L175: N/A | M175: North America
A176: Strategic Alliances | B176: New Partner Pipeline | C176: C - Initial Call/Meeting | D176: III - Reactive Management | E176: Velaro | F176: Chat | G176: Tim Hong | H176: 1 | I176: Not Closed | J176: Not Closed | K176: 5 - N/A | L176: N/A | M176: North America
A177: Strategic Alliances | B177: Partner Maintenance | C177: C - Initial Call/Meeting | D177: III - Reactive Management | E177: Rep Solution | F177: Email Marketing | G177: Tim Hong | H177: 1 | I177: Not Closed | J177: Not Closed | K177: 2 - Pending Announcement | L177: N/A | M177: North America
A178: Strategic Alliances | B178: New Partner Pipeline | C178: C - Initial Call/Meeting | D178: III - Reactive Management | E178: PingV | F178: CMS | G178: David Humpherys | H178: 3 | I178: Not Closed | J178: Not Closed | K178: 5 - N/A | L178: N/A | M178: North America
A179: Strategic Alliances | B179: New Partner Pipeline | C179: D - Agreement Pending | D179: I - Focused Management | E179: KickApps | F179: Social Media | G179: Tim Hong | H179: 4 | I179: Not Closed | J179: Not Closed | K179: 5 - N/A | L179: N/A | M179: North America | N179: Working through Genesis agreements, created video integeration already- 4/17 did an intro to Wareham and Jordan to demo
A180: Strategic Alliances | B180: New Partner Pipeline | C180: D - Agreement Pending | D180: I - Focused Management | E180: Andiamo: Acquired by Techrigy | F180: Social Media | G180: Tim Hong | H180: 1 | N180: Aquired by Techrigy--no longer in existence
A181: Strategic Alliances | B181: New Partner Pipeline | C181: C - Initial Call/Meeting | D181: III - Reactive Management | E181: Turn | F181: Ad Network | G181: David Humpherys | H181: 3 | I181: Not Closed | J181: Not Closed | K181: 5 - N/A | L181: N/A | M181: North America
A182: Strategic Alliances | B182: New Partner Pipeline | C182: D - Agreement Pending | D182: I - Focused Management | E182: Apsis | F182: Email Marketing | G182: Tim Hong | H182: 3 | I182: Not Closed | J182: Not Closed | K182: 5 - N/A | L182: N/A | M182: EMEA | N182: Did Genesis overview 5/14, waiting for final approval to move forward
A183: Strategic Alliances | B183: New Partner Pipeline | C183: D - Agreement Pending | D183: I - Focused Management | E183: Kinexus | F183: Email Marketing | G183: Tim Hong | H183: 3 | I183: Not Closed | J183: Not Closed | K183: 5 - N/A | L183: N/A | M183: North America | N183: EMEA ESP-model is pay per email sent, no other fees--interested if integration is free (integrated with Google Analytics)
A184: Strategic Alliances | B184: New Partner Pipeline | C184: D - Agreement Pending | D184: I - Focused Management | E184: Aggregate Knowledge | F184: Product Recommendations | G184: David Humpherys | H184: 2 | I184: Not Closed | J184: Not Closed | K184: 5 - N/A | L184: N/A | M184: North America
A185: Strategic Alliances | B185: New Partner Pipeline | C185: D - Agreement Pending | D185: I - Focused Management | E185: Listrak | F185: Email Marketing | G185: Tim Hong | H185: 4 | I185: Not Closed | J185: Not Closed | K185: 5 - N/A | L185: N/A | M185: North America | N185: came back through omniture.com-follow up with them next week
A186: Strategic Alliances | B186: New Partner Pipeline | C186: D - Agreement Pending | D186: I - Focused Management | E186: Meteor Solutions | F186: Social Media | G186: Tim Hong | H186: 3 | I186: Not Closed | J186: Not Closed | K186: 5 - N/A | L186: N/A | M186: North America | N186: Had follow up call with them..they are now Meteor Solutions..want to move forward with partnership, don't want to pay 10k, want to pay 5k, invited to Summit
A187: Strategic Alliances | B187: New Partner Pipeline | C187: D - Agreement Pending | D187: I - Focused Management | E187: Brightcove | F187: Rich Media / Streaming Video | G187: David Humpherys | H187: 4 | I187: Not Closed | J187: Not Closed | K187: 5 - N/A | L187: N/A | M187: North America | N187: Excellent cooperation on the CMO dashboard; Brightcove tracking solution is available from Omniture
A188: Strategic Alliances | B188: New Partner Pipeline | C188: D - Agreement Pending | D188: I - Focused Management | E188: Radian 6 | F188: Social Media | G188: Tim Hong | H188: 2 | I188: Not Closed | J188: Not Closed | K188: 5 - N/A | L188: N/A | M188: North America | N188: 6/26-interested in working together, not interested in paying partner fees
A189: Strategic Alliances | B189: New Partner Pipeline | C189: D - Agreement Pending | D189: I - Focused Management | E189: Flurry | F189: Mobile | G189: David Humpherys | H189: 2
A190: Strategic Alliances | B190: New Partner Pipeline | C190: D - Agreement Pending | D190: I - Focused Management | E190: IBM Websphere | F190: CMS | G190: Aaron Watson | H190: 1 | I190: Not Closed | J190: Not Closed | K190: 5 - N/A | L190: N/A | M190: North America | N190: Ron Diener looking at Cornerstone now instead of Coach as the customer to push this along.
A191: Strategic Alliances | B191: New Partner Pipeline | C191: D - Agreement Pending | D191: I - Focused Management | E191: Searchandise.net | F191: Site Search / Information Access | G191: Tim Hong | H191: 2 | N191: Very intersted in integrating with Omniture Merchandising, had previous negotiations with Mercado, invited to Partner summit
A192: Strategic Alliances | B192: New Partner Pipeline | C192: D - Agreement Pending | D192: I - Focused Management | E192: Tailoredmail | F192: Email Marketing | G192: Tim Hong | H192: 2 | I192: Not Closed | J192: Not Closed | K192: 5 - N/A | L192: N/A | M192: North America
A193: Strategic Alliances | B193: New Partner Pipeline | C193: D - Agreement Pending | D193: I - Focused Management | E193: Telligent | F193: Social Media | G193: Tim Hong | H193: 2 | I193: Not Closed | J193: Not Closed | K193: 5 - N/A | L193: N/A | M193: North America | N193: 6/24 Just launched latest version with analytics integrated
A194: Strategic Alliances | B194: New Partner Pipeline | C194: D - Agreement Pending | D194: I - Focused Management | E194: Virtual Coaching | F194: Email Marketing | G194: Tim Hong | H194: 2 | I194: Not Closed | J194: Not Closed | K194: 5 - N/A | L194: N/A | M194: North America | N194: Waiting for joint client
A195: Strategic Alliances | B195: New Partner Pipeline | C195: D - Agreement Pending | D195: I - Focused Management | E195: Quattro | F195: Mobile | G195: David Humpherys | H195: 3
A196: Strategic Alliances | B196: New Partner Pipeline | C196: D - Agreement Pending | D196: I - Focused Management | E196: Webpower | F196: Email Marketing | G196: Tim Hong | H196: 2 | I196: Not Closed | J196: Not Closed | K196: 5 - N/A | L196: N/A | M196: EMEA
A197: Strategic Alliances | B197: New Partner Pipeline | C197: D - Agreement Pending | D197: II - Proactive Management | E197: Crowd Factory | F197: Social Media | G197: Tim Hong | H197: 4 | I197: Not Closed | J197: Not Closed | K197: 5 - N/A | L197: N/A | M197: North America | N197: Call with them on 12/15--working together on HBO, restarted conversations
A198: Strategic Alliances | B198: New Partner Pipeline | C198: D - Agreement Pending | D198: I - Focused Management | E198: Service2Media | F198: Mobile | G198: David Humpherys | H198: 3
A199: Strategic Alliances | B199: New Partner Pipeline | C199: D - Agreement Pending | D199: I - Focused Management | E199: StreamtheWorld | F199: Rich Media / Streaming Video | G199: David Humpherys | H199: 4 | I199: Not Closed | J199: Not Closed | K199: 5 - N/A | L199: N/A | M199: North America
A200: Strategic Alliances | B200: New Partner Pipeline | C200: D - Agreement Pending | D200: II - Proactive Management | E200: NextIT | F200: Chat | G200: Tim Hong | H200: 3 | I200: Not Closed | J200: Not Closed | K200: 5 - N/A | L200: N/A | M200: North America | N200: Gone cold….Funding is a big issue
... 261 more rows

Sheet Other Projects (hidden)
A1: Category | B1: Stage | C1: Priority | D1: Name | E1: Technology Type | F1: Strat Alliances | G1: Status (1 to 5) | H1: Comments
A2: N/A | B2: Other Projects | C2: I - Focused Management | D2: 2009 Direction/Decisions | E2: N/A | F2: Aaron Watson | G2: 4 | H2: Watson finishing Genesis slide for Mellor/Aseem to distribute. One more Watson/Mellor/Parkin mtg needed to finalize 2009 objectives for teams.
D3: System of Record | E3: N/A | F3: Aaron Watson | G3: 4 | H3: Tim sending Watson summary of costs to use Sage ACT.
D4: Partner Program | E4: N/A | F4: Aaron Watson | G4: 1 | H4: Mellor working with Gail on handoff. Watson/Parkin held very positive meeting with Stu/Stiles regarding changes needed and eventual handoff. Portal demo going out next week.
D5: SKO | E5: N/A | F5: Aaron Watson | G5: 5 | H5: Team will be at SKO next week for Day 2 (Thurs).
D6: Press Releases | E6: N/A | F6: Aaron Watson | G6: 5 | H6: Genesis Momentum of 200 Partners went out on 12/18. Watson/Parkin working with Jamie on pipeline for Jan 09 (video momentum, Neolane/Fnac, Allurent/Borders, Acceleration/Embarq, Redbox).
C7: II - Proactive Management | D7: Legal Issues (Privacy) | E7: N/A | F7: David Humpherys | G7: 3 | H7: Watson meeting with Humpherys today Fri, Jan 9 for an update.
D8: Mercado Business Acquisition | E8: N/A | F8: Aaron Watson | G8: 5 | H8: Watson/Hong ID'd "in hand" contracts and updated reports. Watson coordinating competitive concerns with Coremetrics (e.g. collateral and documentation with new Merchandising Adapter release).
D9: Partner Onboarding Process | E9: N/A | F9: Tim Hong | G9: 5 | H9: Stafford's team and coordination going well. Final definition by Dec 18.
D10: Web Site Audit | E10: N/A | F10: Tim Hong | G10: 2 | H10: 171 logos on site. Showcase audit remains. Still seeing problems with site functionality.
C11: III - Reactive Management | D11: New OTF architecture | E11: N/A | F11: David Humpherys | G11: 3 | H11: Meeting tomorrow (1/9) with Engineering, Product, ES, to review architectural choices for new plugin library / OTF product; on the roadmap for next Genesis release (after 2.5)
D12: Q1 Travel | E12: N/A | F12: Aaron Watson | G12: 5 | H12: Watson to NY (WPP) next week. Looking at Toronto (Trifecta) following week.

Sheet RoadTo200 - Details
A1: GENESIS PARTNERS: ROAD TO 200
A2: 2008-12-22
A3: SIGNED = 204
G4: PRODUCTS
A5: YEAR | B5: OWNER | C5: STATUS | D5: NAME | E5: TYPE | F5: ANNOUNCED | G5: SiteCatalyst & Discover | H5: SearchCenter | I5: SiteSearch & Mercado | J5: Test&Target | K5: Survey | L5: Publish
A6: 2008 | B6: Aaron Watson | C6: Signed | D6: Business Objects | E6: Business Intelligence | F6: N/A | G6: X
A7: 2008 | B7: Tim Hong | C7: Signed | D7: LivePerson | E7: Chat | F7: 2008-12-18 | G7: X
A8: 2008 | B8: TBD (via Mercado) | C8: Signed | D8: 800 Pixels | E8: CMS | F8: N/A | I8: X
A9: 2008 | B9: David Humpherys | C9: Signed | D9: Clickability | E9: CMS | F9: 2008-12-02 | G9: X
A10: 2008 | B10: David Humpherys | C10: Signed | D10: Crownpeak | E10: CMS | F10: N/A | G10: X
A11: 2008 | B11: David Humpherys | C11: Signed | D11: SDL Tridian | E11: CMS | F11: N/A | G11: X
A12: 2008 | B12: David Humpherys | C12: Signed | D12: RightNow Technologies | E12: CRM/SFA | F12: 2008-12-18 | G12: X
A13: 2008 | B13: Aaron Watson | C13: Signed | D13: SAP | E13: CRM/SFA | F13: N/A | G13: X
A14: 2008 | B14: David Humpherys | C14: Signed | D14: Copacast | E14: Database Marketing | F14: N/A | G14: X
A15: 2008 | B15: David Humpherys | C15: Signed | D15: Eyeblaster | E15: Display Advertising / Ad Serving | F15: N/A | G15: X
A16: 2008 | B16: David Humpherys | C16: Signed | D16: Pointroll | E16: Display Advertising / Ad Serving | F16: 2008-12-18 | G16: X
A17: 2008 | B17: TBD (via Mercado) | C17: Signed | D17: Auspient | E17: eCommerce Platform | F17: N/A | I17: X
A18: 2008 | B18: TBD (via Mercado) | C18: Signed | D18: Conchango | E18: eCommerce Platform | F18: N/A | I18: X
A19: 2008 | B19: TBD (via Mercado) | C19: Signed | D19: eInBusiness | E19: eCommerce Platform | F19: N/A | I19: X
A20: 2008 | B20: TBD (via Mercado) | C20: Signed | D20: James Tower | E20: eCommerce Platform | F20: N/A | I20: X
A21: 2008 | B21: TBD (via Mercado) | C21: Signed | D21: Project Thunder | E21: eCommerce Platform | F21: N/A | I21: X
A22: 2008 | B22: TBD (via Mercado) | C22: Signed | D22: Salmon | E22: eCommerce Platform | F22: N/A | I22: X
A23: 2008 | B23: TBD (via Mercado) | C23: Signed | D23: Sigma Commerce/Sigma Micro | E23: eCommerce Platform | F23: N/A | I23: X
A24: 2008 | B24: TBD (via Mercado) | C24: Signed | D24: Snow Valley | E24: eCommerce Platform | F24: N/A | I24: X
A25: 2008 | B25: TBD (via Mercado) | C25: Signed | D25: Ventura Web Design | E25: eCommerce Platform | F25: N/A | I25: X
A26: 2008 | B26: TBD (via Mercado) | C26: Signed | D26: WebLinc | E26: eCommerce Platform | F26: N/A | I26: X
A27: 2008 | B27: Channel | C27: Signed | D27: Corsis Technology Group | E27: eCommerce Platform* | F27: N/A | G27: X
A28: 2008 | B28: Channel | C28: Signed | D28: DemandWare | E28: eCommerce Platform* | F28: N/A | G28: X
A29: 2008 | B29: Channel | C29: Signed | D29: Devix | E29: eCommerce Platform* | F29: N/A | G29: X
A30: 2008 | B30: Channel | C30: Signed | D30: eCommerce Partners | E30: eCommerce Platform* | F30: N/A | G30: X
A31: 2008 | B31: Channel | C31: Signed | D31: Elastic Path Software Inc. | E31: eCommerce Platform* | F31: N/A | G31: X
A32: 2008 | B32: Channel | C32: Signed | D32: Enigmedia | E32: eCommerce Platform* | F32: N/A | G32: X
A33: 2008 | B33: Channel | C33: Signed | D33: EZ Rez Software | E33: eCommerce Platform* | F33: N/A | G33: X
A34: 2008 | B34: Channel | C34: Signed | D34: Hybris GmbH | E34: eCommerce Platform* | F34: N/A | G34: X | I34: X
A35: 2008 | B35: Channel | C35: Signed | D35: Juice Media LLC | E35: eCommerce Platform* | F35: N/A | G35: X
A36: 2008 | B36: Channel | C36: Signed | D36: Lagniappe Marketing DBA Dministe | E36: eCommerce Platform* | F36: N/A | G36: X
A37: 2008 | B37: Channel | C37: Signed | D37: Macrovision Corporation | E37: eCommerce Platform* | F37: N/A | G37: X
A38: 2008 | B38: Channel | C38: Signed | D38: McClatchy Interactive | E38: eCommerce Platform* | F38: N/A | G38: X
A39: 2008 | B39: Channel | C39: Signed | D39: Mezine | E39: eCommerce Platform* | F39: N/A | G39: X
A40: 2008 | B40: Channel | C40: Signed | D40: Naviataire Inc | E40: eCommerce Platform* | F40: N/A | G40: X
A41: 2008 | B41: Channel | C41: Signed | D41: Point & Shop | E41: eCommerce Platform* | F41: N/A | G41: X
A42: 2008 | B42: Channel | C42: Signed | D42: Prosodie Interactive California | E42: eCommerce Platform* | F42: N/A | G42: X
A43: 2008 | B43: Channel | C43: Signed | D43: Rainmaker | E43: eCommerce Platform* | F43: N/A | G43: X
A44: 2008 | B44: Channel | C44: Signed | D44: Solid Cactus | E44: eCommerce Platform* | F44: N/A | G44: X
A45: 2008 | B45: Channel | C45: Signed | D45: Speedera | E45: eCommerce Platform* | F45: N/A | G45: X
A46: 2008 | B46: Channel | C46: Signed | D46: Synacor | E46: eCommerce Platform* | F46: N/A | G46: X
A47: 2008 | B47: Channel | C47: Signed | D47: Thayer Interactive | E47: eCommerce Platform* | F47: N/A | G47: X
A48: 2008 | B48: Channel | C48: Signed | D48: TravelCLICK, Inc. | E48: eCommerce Platform* | F48: N/A | G48: X
A49: 2008 | B49: Channel | C49: Signed | D49: Venda | E49: eCommerce Platform* | F49: N/A | G49: X
A50: 2008 | B50: Channel | C50: Signed | D50: Zinio | E50: eCommerce Platform* | F50: N/A | G50: X
A51: 2008 | B51: Tim Hong | C51: Signed | D51: ClickSquared | E51: Email Marketing | F51: N/A | G51: X
A52: 2008 | B52: Tim Hong | C52: Signed | D52: Contactlab | E52: Email Marketing | F52: N/A | G52: X
A53: 2008 | B53: Tim Hong | C53: Signed | D53: Datran | E53: Email Marketing | F53: N/A | G53: X
A54: 2008 | B54: Tim Hong | C54: Signed | D54: DoubleClick Clickm@iler | E54: Email Marketing | F54: N/A | G54: X
A55: 2008 | B55: Tim Hong | C55: Signed | D55: Emailingsolutions | E55: Email Marketing | F55: N/A | G55: X
A56: 2008 | B56: Tim Hong | C56: Signed | D56: EmailReaction | E56: Email Marketing | F56: N/A | G56: X
A57: 2008 | B57: Tim Hong | C57: Signed | D57: eServices | E57: Email Marketing | F57: N/A | G57: X
A58: 2008 | B58: Tim Hong | C58: Signed | D58: Gold Lasso | E58: Email Marketing | F58: N/A | G58: X
A59: 2008 | B59: Tim Hong | C59: Signed | D59: Inboxmarketer | E59: Email Marketing | F59: N/A | G59: X
A60: 2008 | B60: Tim Hong | C60: Signed | D60: Marketbright | E60: Email Marketing | F60: N/A | G60: X
A61: 2008 | B61: Tim Hong | C61: Signed | D61: Merkle/Quris | E61: Email Marketing | F61: N/A | G61: X
A62: 2008 | B62: Tim Hong | C62: Signed | D62: Zeta Interactive | E62: Email Marketing | F62: N/A | G62: X
A63: 2008 | B63: TBD (via Mercado) | C63: Signed | D63: Maxymiser | E63: Landing Page Optimization | F63: N/A | I63: X
A64: 2008 | B64: TBD (via Mercado) | C64: Signed | D64: Basis | E64: Linguistics | F64: N/A | I64: X
A65: 2008 | B65: TBD (via Mercado) | C65: Signed | D65: Lionbridge | E65: Linguistics | F65: N/A | I65: X
A66: 2008 | B66: David Humpherys | C66: Signed | D66: Aprimo | E66: Marketing Automation | F66: 2008-12-18 | G66: X
A67: 2008 | B67: David Humpherys | C67: Signed | D67: Eloqua | E67: Marketing Automation | F67: N/A | G67: X
A68: 2008 | B68: David Humpherys | C68: Signed | D68: RightOn Interactive | E68: Marketing Automation | F68: N/A | G68: X
A69: 2008 | B69: David Humpherys | C69: Signed | D69: Bango | E69: Mobile | F69: 2008-12-18 | G69: X
A70: 2008 | B70: David Humpherys | C70: Signed | D70: Authenticlick | E70: Other | F70: N/A | G70: X
A71: 2008 | B71: TBD (Via Visual Sciences) | C71: Signed | D71: Digital Insight | E71: Other | F71: N/A | G71: X
A72: 2008 | B72: David Humpherys | C72: Signed | D72: Spotrunner | E72: Other - Offline Media | F72: 2008-12-18 | G72: X
A73: 2008 | B73: David Humpherys | C73: Signed | D73: Atomic Labs | E73: Performance Management | F73: 2008-12-18 | G73: X
A74: 2008 | B74: David Humpherys | C74: Signed | D74: ClickTale | E74: Performance Management | F74: 2008-12-18 | G74: X
A75: 2008 | B75: David Humpherys | C75: Signed | D75: DotCom Monitor | E75: Performance Management | F75: 2008-12-18 | G75: X
A76: 2008 | B76: David Humpherys | C76: Signed | D76: Radware | E76: Performance Management | F76: N/A | G76: X
A77: 2008 | B77: TBD (via Mercado) | C77: Signed | D77: Web Collage | E77: Product Catalog | F77: N/A | I77: X
A78: 2008 | B78: David Humpherys | C78: Signed | D78: MyBuys | E78: Product Recommendations | F78: N/A | G78: X | I78: X
A79: 2008 | B79: David Humpherys | C79: Signed | D79: ActiveVideoNetworks | E79: Rich Media / Streaming Video | F79: N/A | G79: X
A80: 2008 | B80: Adobe | C80: Signed | D80: Adobe | E80: Rich Media / Streaming Video | F80: N/A | G80: X
A81: 2008 | B81: David Humpherys | C81: Expected | D81: Brightcove | E81: Rich Media / Streaming Video | F81: 2008-12-08 | G81: X
A82: 2008 | B82: TBD (via Mercado) | C82: Signed | D82: Fluid | E82: Rich Media / Streaming Video | F82: N/A | I82: X
A83: 2008 | B83: David Humpherys | C83: Signed | D83: Move Networks, Inc. | E83: Rich Media / Streaming Video | F83: N/A | G83: X
A84: 2008 | B84: David Humpherys | C84: Signed | D84: Ooyala | E84: Rich Media / Streaming Video | F84: N/A | G84: X
A85: 2008 | B85: David Humpherys | C85: Signed | D85: VMIX | E85: Rich Media / Streaming Video | F85: N/A | G85: X
A86: 2008 | B86: Tim Hong | C86: Signed | D86: Kwiry | E86: RSS/SMS | F86: N/A | G86: X
A87: 2008 | B87: David Humpherys | C87: Signed | D87: ABCSearch | E87: Search Marketing | F87: N/A | H87: X
A88: 2008 | B88: Aaron Watson | C88: Signed | D88: Baidu.com | E88: Search Marketing | F88: 3/5/2008 | H88: X
A89: 2008 | B89: TBD (via Mercado) | C89: Signed | D89: ClickThrough | E89: Search Marketing | F89: N/A | I89: X
A90: 2008 | B90: Tim Hong | C90: Signed | D90: Verified Audit | E90: Site Auditing / Site Hygiene | F90: N/A | G90: X
A91: 2008 | B91: Tim Hong | C91: Signed | D91: Collective Intellect | E91: Social Media | F91: N/A | G91: X
A92: 2008 | B92: Tim Hong | C92: Signed | D92: Keibi | E92: Social Media | F92: 2008-12-18 | G92: X
A93: 2008 | B93: David Humpherys | C93: Signed | D93: Lithium Technologies | E93: Social Media | F93: 2008-09-16 | G93: X
A94: 2008 | B94: Tim Hong | C94: Signed | D94: Pluck | E94: Social Media | F94: N/A | G94: X
A95: 2008 | B95: Tim Hong | C95: Signed | D95: ShareThis | E95: Social Media | F95: 2008-12-18 | G95: X
A96: 2008 | B96: Tim Hong | C96: Signed | D96: Visible Technologies | E96: Social Media | F96: 2008-12-18 | G96: X
A97: 2008 | B97: David Humpherys | C97: Signed | D97: Leotrace | E97: Survey / User Experience | F97: N/A | G97: X
A98: 2008 | B98: David Humpherys | C98: Signed | D98: Rep Solution | E98: Survey / User Experience | F98: N/A | G98: X
A99: 2008 | B99: David Humpherys | C99: Signed | D99: MediaForge | E99: Widgets | F99: N/A | G99: X
A100: 2007 | B100: David Humpherys | C100: Signed | D100: Advertising.com (AOL) | E100: Ad Network | F100: 2006-12-12 | G100: X
A101: 2007 | B101: David Humpherys | C101: Signed | D101: Yahoo! (BlueLithium) | E101: Ad Network | F101: N/A | G101: X
A102: 2007 | B102: Aaron Watson | C102: Signed | D102: Memetrics | E102: Behavioral Targeting | F102: 2006-12-12 | G102: X
A103: 2007 | B103: Aaron Watson | C103: Signed | D103: X+1 | E103: Behavioral Targeting | F103: N/A | G103: X
A104: 2007 | B104: Tim Hong | C104: Signed | D104: InstantService | E104: Chat | F104: 12/3/2007 | G104: X
A105: 2007 | B105: David Humpherys | C105: Signed | D105: Alterian (MediaSurface) | E105: CMS | F105: 7/25/2007 | G105: X
A106: 2007 | B106: David Humpherys | C106: Signed | D106: Interwoven | E106: CMS | F106: 2007-06-28 | G106: X | I106: X
A107: 2007 | B107: David Humpherys | C107: Signed | D107: Vignette | E107: CMS | F107: 2007-04-30 | G107: X
A108: 2007 | B108: David Humpherys | C108: Signed | D108: Mercent | E108: Comparison Shopping | F108: 9/18/2007 | G108: X
A109: 2007 | B109: Aaron Watson | C109: Signed | D109: Microsoft (Atlas) | E109: Display Advertising / Ad Serving | F109: N/A | G109: X
A110: 2007 | B110: David Humpherys | C110: Signed | D110: Sapient (Bridgetrack) | E110: Display Advertising / Ad Serving | F110: 7/25/2007 | G110: X
A111: 2007 | B111: Channel | C111: Signed | D111: Acumium LLC | E111: eCommerce Platform | F111: 2007-09-17 | G111: X
A112: 2007 | B112: Channel | C112: Signed | D112: Amazon Enterprise Solutions | E112: eCommerce Platform | F112: 2007-09-17 | G112: X
A113: 2007 | B113: Channel | C113: Signed | D113: ChannelNet | E113: eCommerce Platform | F113: 2007-09-17 | G113: X
A114: 2007 | B114: Channel | C114: Signed | D114: DMinSite | E114: eCommerce Platform | F114: 2007-09-17 | G114: X
A115: 2007 | B115: Channel | C115: Signed | D115: Fry, Inc. | E115: eCommerce Platform | F115: 2007-03-29 | G115: X | I115: X
A116: 2007 | B116: Channel | C116: Signed | D116: Lagarde | E116: eCommerce Platform | F116: 2007-09-17 | G116: X
A117: 2007 | B117: Channel | C117: Signed | D117: MarketBright | E117: eCommerce Platform | F117: 2007-09-17 | G117: X
A118: 2007 | B118: Channel | C118: Signed | D118: Media99 LLC | E118: eCommerce Platform | F118: 2007-09-17 | G118: X
A119: 2008 | B119: Channel | C119: Signed | D119: Scene7 (Adobe) | E119: eCommerce Platform | F119: N/A | G119: X | I119: X
A120: 2007 | B120: Channel | C120: Signed | D120: Motricity | E120: eCommerce Platform | F120: 2007-09-17 | G120: X
A121: 2007 | B121: Channel | C121: Signed | D121: Novator | E121: eCommerce Platform | F121: 2007-09-17 | G121: X | I121: X
A122: 2007 | B122: Channel | C122: Signed | D122: RichFX | E122: eCommerce Platform | F122: 2007-09-17 | G122: X
A123: 2007 | B123: Channel | C123: Signed | D123: Saxotech | E123: eCommerce Platform | F123: 2007-09-17 | G123: X
A124: 2007 | B124: Channel | C124: Signed | D124: TIG Global | E124: eCommerce Platform | F124: 2007-09-17 | G124: X
A125: 2007 | B125: Channel | C125: Signed | D125: Truition | E125: eCommerce Platform | F125: 2007-09-17 | G125: X
A126: 2007 | B126: Tim Hong | C126: Signed | D126: Return Path | E126: Email Deliverability | F126: 10/23/2007 | G126: X
A127: 2007 | B127: Tim Hong | C127: Signed | D127: Alterian | E127: Email Marketing | F127: 7/25/2007 | G127: X
A128: 2007 | B128: Tim Hong | C128: Signed | D128: BlueHornet (Digital River) | E128: Email Marketing | F128: 7/25/2007 | G128: X
A129: 2007 | B129: Tim Hong | C129: Signed | D129: Bronto | E129: Email Marketing | F129: 12/3/2007 | G129: X
A130: 2007 | B130: Tim Hong | C130: Signed | D130: CheetahMail | E130: Email Marketing | F130: 2006-12-12 | G130: X
A131: 2007 | B131: Tim Hong | C131: Signed | D131: eCircle | E131: Email Marketing | F131: 12/11/2007 | G131: X
A132: 2007 | B132: Tim Hong | C132: Signed | D132: E-Dialog | E132: Email Marketing | F132: 5/1/2007 | G132: X
A133: 2007 | B133: Tim Hong | C133: Signed | D133: EmailVision | E133: Email Marketing | F133: 9/10/2007 | G133: X
A134: 2007 | B134: Tim Hong | C134: Signed | D134: Epsilon DREAM (Formerly: Bigfoot) | E134: Email Marketing | F134: 2006-12-12 | G134: X
A135: 2007 | B135: Tim Hong | C135: Signed | D135: Epsilon DREAMMail (Formerly: DoubleClick DARTmail) | E135: Email Marketing | F135: 2006-12-12 | G135: X
A136: 2007 | B136: Tim Hong | C136: Signed | D136: ExactTarget | E136: Email Marketing | F136: 2006-12-12 | G136: X
A137: 2007 | B137: Tim Hong | C137: Signed | D137: Got | E137: Email Marketing | F137: 5/1/2007 | G137: X
A138: 2007 | B138: Tim Hong | C138: Signed | D138: Harte-Hanks | E138: Email Marketing | F138: 10/23/2007 | G138: X
A139: 2007 | B139: Tim Hong | C139: Signed | D139: Ipost | E139: Email Marketing | F139: 5/1/2007 | G139: X
A140: 2007 | B140: Tim Hong | C140: Signed | D140: Knotice | E140: Email Marketing | F140: 12/3/2007 | G140: X
A141: 2007 | B141: Tim Hong | C141: Signed | D141: Komunik | E141: Email Marketing | F141: 12/3/2007 | G141: X
A142: 2007 | B142: Tim Hong | C142: Signed | D142: Loyalty Lab | E142: Email Marketing | F142: 5/1/2007 | G142: X
A143: 2007 | B143: Tim Hong | C143: Signed | D143: Neolane | E143: Email Marketing | F143: 12/11/2007 | G143: X
A144: 2007 | B144: Tim Hong | C144: Signed | D144: Optivo | E144: Email Marketing | F144: 12/11/2007 | G144: X
A145: 2007 | B145: Tim Hong | C145: Signed | D145: Redeye | E145: Email Marketing | F145: 12/11/2007 | G145: X
A146: 2007 | B146: Tim Hong | C146: Signed | D146: Rocketseed | E146: Email Marketing | F146: 12/11/2007 | G146: X
A147: 2007 | B147: Tim Hong | C147: Signed | D147: Sapient (Bridgetrack) | E147: Email Marketing | F147: 7/25/2007 | G147: X
A148: 2007 | B148: Tim Hong | C148: Signed | D148: Silverpop | E148: Email Marketing | F148: 2006-12-12 | G148: X
A149: 2007 | B149: Tim Hong | C149: Signed | D149: smartFOCUS | E149: Email Marketing | F149: 12/11/2007 | G149: X
A150: 2007 | B150: Tim Hong | C150: Signed | D150: Strongmail | E150: Email Marketing | F150: 10/23/2007 | G150: X
A151: 2007 | B151: Tim Hong | C151: Signed | D151: SubscriberMail | E151: Email Marketing | F151: 10/23/2007 | G151: X
A152: 2007 | B152: Tim Hong | C152: Signed | D152: ThinData | E152: Email Marketing | F152: 5/1/2007 | G152: X
A153: 2007 | B153: Tim Hong | C153: Signed | D153: Tripolis | E153: Email Marketing | F153: 12/11/2007 | G153: X
A154: 2007 | B154: Tim Hong | C154: Signed | D154: WhatCounts | E154: Email Marketing | F154: 10/23/2007 | G154: X
A155: 2007 | B155: Tim Hong | C155: Signed | D155: YesMail | E155: Email Marketing | F155: 7/25/2007 | G155: X
A156: 2007 | B156: David Humpherys | C156: Signed | D156: Wingate Studios | E156: Event Registration | F156: 12/3/2007 | G156: X
A157: 2007 | B157: Tim Hong | C157: Signed | D157: Kefta (Acxiom Digital) | E157: Landing Page Optimization | F157: 2006-12-12 | G157: X
A158: 2007 | B158: Tim Hong | C158: Signed | D158: Optimost (Interwoven) | E158: Landing Page Optimization | F158: 2006-12-12 | G158: X
A159: 2007 | B159: Tim Hong | C159: Signed | D159: Widemile | E159: Landing Page Optimization | F159: 7/25/2007 | G159: X
A160: 2007 | B160: David Humpherys | C160: Signed | D160: InsideSales.com | E160: Lead Management | F160: 12/3/2007 | G160: X
A161: 2007 | B161: David Humpherys | C161: Signed | D161: vTrenz (Silverpop) | E161: Marketing Automation | F161: 12/3/2007 | G161: X
A162: 2007 | B162: David Humpherys | C162: Signed | D162: Expresso | E162: Online Collaboration | F162: 10/23/2007 | G162: X
A163: 2007 | B163: Aaron Watson | C163: Signed | D163: Claritas/Prism | E163: Other | F163: N/A | G163: X
A164: 2007 | B164: David Humpherys | C164: Signed | D164: Coradiant | E164: Performance Management | F164: 10/23/2007 | G164: X
A165: 2007 | B165: David Humpherys | C165: Signed | D165: TeaLeaf | E165: Performance Management | F165: 2007-10-22 | G165: X
A166: 2007 | B166: David Humpherys | C166: Signed | D166: Baynote | E166: Product Recommendations | F166: 5/1/2007 | G166: X | I166: X
A167: 2007 | B167: Tim Hong | C167: Signed | D167: Bazaarvoice | E167: Ratings and Reviews | F167: 2006-12-12 | G167: X | I167: X
A168: 2007 | B168: Tim Hong | C168: Signed | D168: PowerReviews | E168: Ratings and Reviews | F168: 5/1/2007 | G168: X | I168: X
A169: 2007 | B169: David Humpherys | C169: Signed | D169: Allurent | E169: Rich Media / Streaming Video | F169: 2006-12-12 | G169: X
A170: 2007 | B170: Tim Hong | C170: Signed | D170: SimpleFeed | E170: RSS/SMS | F170: 12/3/2007 | G170: X
A171: 2007 | B171: Aaron Watson | C171: Signed | D171: OrangeSoda | E171: Search Engine Optimization (SEO) | F171: 2007-10-23 | G171: X
A172: 2007 | B172: Aaron Watson | C172: Signed | D172: YourAmigo | E172: Search Engine Optimization (SEO) | F172: 2006-12-12 | G172: X | I172: X
A173: 2007 | B173: Aaron Watson | C173: Signed | D173: AdHere (Formerly: Enhance Interactive) | E173: Search Marketing | F173: 2006-12-12 | H173: X
A174: 2007 | B174: Aaron Watson | C174: Signed | D174: Ask.com | E174: Search Marketing | F174: 2006-12-12 | H174: X
A175: 2007 | B175: Aaron Watson | C175: Signed | D175: Efficient Frontier | E175: Search Marketing | F175: N/A | H175: X
A176: 2007 | B176: Aaron Watson | C176: Signed | D176: Google | E176: Search Marketing | F176: 2006-12-12 | H176: X
A177: 2007 | B177: Aaron Watson | C177: Signed | D177: LookSmart | E177: Search Marketing | F177: 2006-12-12 | H177: X
A178: 2007 | B178: Aaron Watson | C178: Signed | D178: Microsoft (MSN AdCenter) | E178: Search Marketing | F178: 2006-12-12 | H178: X | I178: X
A179: 2007 | B179: Aaron Watson | C179: Signed | D179: Mirago | E179: Search Marketing | F179: N/A | H179: X
A180: 2007 | B180: Aaron Watson | C180: Signed | D180: MIVA (Espotting) | E180: Search Marketing | F180: 2006-12-12 | H180: X
A181: 2007 | B181: Aaron Watson | C181: Signed | D181: MIVA (Findwhat.com) | E181: Search Marketing | F181: 2007-07-25 | H181: X
A182: 2007 | B182: Aaron Watson | C182: Signed | D182: SearchFeed | E182: Search Marketing | F182: 2006-12-12 | H182: X
A183: 2007 | B183: Aaron Watson | C183: Signed | D183: Yahoo! Search | E183: Search Marketing | F183: 2006-12-12 | H183: X
A184: 2007 | B184: David Humpherys | C184: Signed | D184: ABC Interactive | E184: Site Auditing / Site Hygiene | F184: 2008-12-18 | G184: X
A185: 2007 | B185: Aaron Watson | C185: Signed | D185: Maxamine (Accenture) | E185: Site Auditing / Site Hygiene | F185: 2006-12-12 | G185: X
A186: 2007 | B186: David Humpherys | C186: Signed | D186: Numeric Analytics | E186: Site Optimization | F186: 7/25/2007 | G186: X
A187: 2007 | B187: Tim Hong | C187: Signed | D187: Celebros | E187: Site Search / Information Access | F187: 12/3/2007 | G187: X
A188: 2007 | B188: Tim Hong | C188: Signed | D188: Endeca | E188: Site Search / Information Access | F188: 2006-12-12 | G188: X
A189: 2007 | B189: Tim Hong | C189: Signed | D189: Fredhopper | E189: Site Search / Information Access | F189: 12/11/2007 | G189: X
A190: 2007 | B190: Tim Hong | C190: Signed | D190: Microsoft (Formerly: FAST Search & Transfer) | E190: Site Search / Information Access | F190: 2006-12-12 | G190: X
A191: 2007 | B191: Tim Hong | C191: Signed | D191: SLI Systems | E191: Site Search / Information Access | F191: 5/1/2007 | G191: X
A192: 2007 | B192: David Humpherys | C192: Signed | D192: Foresee Results | E192: Survey / Customer Satisfaction Management | F192: 2006-12-12 | G192: X
A193: 2007 | B193: David Humpherys | C193: Signed | D193: iPerceptions | E193: Survey / Customer Satisfaction Management | F193: 2007-07-18 | G193: X
A194: 2007 | B194: David Humpherys | C194: Signed | D194: OpinionLab | E194: Survey / User Experience | F194: 2006-12-12 | G194: X
A195: 2007 | B195: David Humpherys | C195: Signed | D195: Usability Sciences | E195: Survey / User Experience | F195: 7/25/2007 | G195: X
A196: 2007 | B196: David Humpherys | C196: Signed | D196: ClearSpring | E196: Widgets | F196: N/A | G196: X
A197: 2006 | B197: David Humpherys | C197: Signed | D197: BizRate | E197: Survey / User Experience | F197: N/A | G197: X
A198: 2005 | B198: David Humpherys | C198: Signed | D198: Dotomi | E198: Ad Network | F198: N/A | G198: X
A199: 2005 | B199: David Humpherys | C199: Signed | D199: Linkshare | E199: Affiliate Marketing | F199: N/A | G199: X
A200: 2005 | B200: Aaron Watson | C200: Signed | D200: Salesforce.com | E200: CRM/SFA | F200: 2005-09-12 | G200: X
... 54 more rows

Sheet RoadTo200 - Stats
A1: GENESIS PARTNERS: ROAD TO 200
A2: 2008-12-22
B4: TOTAL PARTNERS = 204
B6: TYPE | C6: COUNT | E6: OWNER (NOT "SIGNER") | F6: COUNT | H6: ANNOUNCED | I6: COUNT
B7: Ad Network | C7: 3 | E7: Aaron Watson | F7: 26 | H7: 2005-01-25 | I7: 1
B8: Affiliate Marketing | C8: 1 | E8: Channel | F8: 42 | H8: 2005-09-12 | I8: 2
B9: Behavioral Targeting | C9: 2 | E9: David Humpherys | F9: 53 | H9: 2005-11-02 | I9: 1
B10: Business Intelligence | C10: 1 | E10: TBD (via Mercado) | F10: 17 | H10: 2006-12-12 | I10: 28
B11: Chat | C11: 2 | E11: Tim Hong | F11: 64 | H11: 2007-03-29 | I11: 1
B12: CMS | C12: 7 | E12: TBD (Via Visual Sciences) | F12: 1 | H12: 2007-04-30 | I12: 1
B13: Comparison Shopping | C13: 1 | E13: Adobe | F13: 1 | H13: 5/1/2007 | I13: 8
B14: CRM/SFA | C14: 3 | E14: Grand Total | F14: 204 | H14: 2007-06-28 | I14: 1
B15: Data Warehouse | C15: 1 | H15: 2007-07-18 | I15: 1
B16: Database Marketing | C16: 1 | H16: 7/25/2007 | I16: 9
B17: Display Advertising / Ad Serving | C17: 6 | H17: 2007-07-25 | I17: 1
B18: eCommerce Platform | C18: 28 | H18: 9/10/2007 | I18: 1
B19: eCommerce Platform* | C19: 24 | H19: 2007-09-17 | I19: 13
B20: Email Deliverability | C20: 1 | H20: 9/18/2007 | I20: 1
B21: Email Marketing | C21: 43 | E21: YEAR | F21: COUNT | H21: 2007-10-22 | I21: 1
B22: Event Registration | C22: 1 | E22: 2005 | F22: 12 | H22: 2007-10-23 | I22: 1
B23: Geolocation | C23: 1 | E23: 2006 | F23: 1 | H23: 10/23/2007 | I23: 7
B24: Landing Page Optimization | C24: 4 | E24: 2007 | F24: 96 | H24: 3/5/2008 | I24: 1
B25: Lead Management | C25: 1 | E25: 2008 | F25: 95 | H25: 2008-09-16 | I25: 1
B26: Linguistics | C26: 2 | E26: Grand Total | F26: 204 | H26: 2008-12-02 | I26: 1
B27: Marketing Automation | C27: 4 | H27: 12/3/2007 | I27: 9
B28: Mobile | C28: 1 | H28: 2008-12-08 | I28: 1
B29: Online Collaboration | C29: 1 | H29: 12/11/2007 | I29: 8
B30: Other | C30: 3 | H30: 2008-12-18 | I30: 13
B31: Other - Offline Media | C31: 1 | H31: Grand Total | I31: 112
B32: Performance Management | C32: 6
B33: Product Catalog | C33: 1
B34: Product Recommendations | C34: 2 | E34: "DIRTY DOZEN"
B35: Ratings and Reviews | C35: 2 | E35: NAME | F35: OWNER | G35: C | H35: STATUS | I35: COUNT
B36: Rich Media / Streaming Video | C36: 8 | E36: Bango | F36: DH | G36: Y | H36: Signed | I36: 1
B37: RSS/SMS | C37: 2 | E37: Clicktale | F37: DH | G37: Y | H37: Signed | I37: 2
B38: Search Engine Optimization (SEO) | C38: 2 | E38: DotCom Monitor | F38: DH | G38: Y | H38: Signed | I38: 3
B39: Search Marketing | C39: 14 | E39: Pointroll | F39: DH | G39: Y | H39: Signed | I39: 4
B40: Site Auditing / Site Hygiene | C40: 3 | E40: ShareThis | F40: DH | G40: Y | H40: Signed | I40: 5
B41: Site Optimization | C41: 1 | E41: Spotrunner | F41: DH | G41: Y | H41: Signed | I41: 6
B42: Site Search / Information Access | C42: 5 | E42: Keibi | F42: TH | G42: Y | H42: Signed | I42: 7
B43: Social Media | C43: 6 | E43: LivePerson | F43: TH | G43: Y | H43: Signed | I43: 8
B44: Survey / Customer Satisfaction Management | C44: 2 | E44: Pluck | F44: TH | G44: Y | H44: Signed | I44: 9
B45: Survey / User Experience | C45: 5 | E45: Verified Audit | F45: TH | G45: Y | H45: Signed | I45: 10
B46: Widgets | C46: 2 | E46: Visible Technologies | F46: TH | G46: Y | H46: Signed | I46: 11
B47: Grand Total | C47: 204 | E47: Collective Intellect | F47: TH | G47: Y | H47: Signed | I47: 12

Sheet List to Display
A1: Genesis Network Partners
A2: COUNT: 201 (209 Including Competitors & Acquisitions)
A3: DISPLAY: 177; NO DISPLAY: 24
A4: NAME | B4: TYPE | C4: DISPLAY | D4: AUDIT
A5: Advertising.com (AOL) | B5: Ad Network | C5: Yes | D5: FIX - locate and add to "Ad Network" or "Display Advertising"
A6: Dotomi | B6: Ad Network | C6: Yes | D6: FIX - move from "Affiliate Marketing" to "Ad Network" or "Display Advertising"
A7: Linkshare | B7: Affiliate Marketing | C7: Yes | D7: OK
A8: InstantService | B8: Chat | C8: Yes | D8: FIX - move from "Email Marketing" to "Chat"
A9: LivePerson | B9: Chat | C9: Yes | D9: FIX - move from "Customer Experience Management" to "Chat"
A10: 800 Pixels | B10: CMS | C10: Yes | D10: FIX - move from "eCommerce" to "Content Management"
A11: Alterian (MediaSurface) | B11: CMS | C11: Yes | D11: ADD - to "Content Management" category
A12: Clickability | B12: CMS | C12: Yes | D12: FIX - remove duplicate in "Affiliate Marketing"; logo in "Content Management" is ok
A13: Crownpeak | B13: CMS | C13: Yes | D13: OK
A14: Interwoven | B14: CMS | C14: Yes | D14: OK
A15: SDL Tridian | B15: CMS | C15: Yes | D15: OK
A16: Vignette | B16: CMS | C16: Yes | D16: OK
A17: Mercent | B17: Comparison Shopping | C17: Yes | D17: OK
A18: RightNow Technologies | B18: CRM/SFA | C18: Yes | D18: FIX - add logo
A19: RightNow Technologies - Email | B19: Email Marketing | C19: Yes | D19: OK
A20: Salesforce.com | B20: CRM/SFA | C20: Yes | D20: OK
A21: Oracle | B21: Data Warehouse | C21: Yes | D21: FIX - move from "CRM/SFA" to "Database" category
A22: Copacast | B22: Database Marketing | C22: Yes | D22: FIX - move from "Ad Serving" to "Other" category
A23: DoubleClick DFA (Google) | B23: Display Advertising / Ad Serving | C23: Yes | D23: FIX - move from "Affiliate Marketing" to "Ad Serving/Display Advertising" and delete logo currently there
A24: Eyeblaster | B24: Display Advertising / Ad Serving | C24: Yes | D24: FIX - locate and add to "Display Advertising"
A25: Pointroll | B25: Display Advertising / Ad Serving | C25: Yes | D25: OK
A26: Sapient (Bridgetrack) | B26: Display Advertising / Ad Serving | C26: Yes | D26: OK
A27: Acumium LLC | B27: eCommerce Platform | C27: Yes | D27: ADD - to "eCommerce" category
A28: Amazon Enterprise Solutions | B28: eCommerce Platform | C28: Yes | D28: ADD - to "eCommerce" category
A29: Auspient | B29: eCommerce Platform | C29: Yes | D29: ADD - to "eCommerce" category
A30: ChannelNet | B30: eCommerce Platform | C30: Yes | D30: ADD - to "eCommerce" category
A31: Conchango | B31: eCommerce Platform | C31: Yes | D31: FIX - move from "Social Media" to "eCommerce"
A32: DMinSite | B32: eCommerce Platform | C32: Yes | D32: FIX - move from "Consulting & Strategy" to "eCommerce" (Delete "Consulting & Strategy" category)
A33: eInBusiness | B33: eCommerce Platform | C33: Yes | D33: FIX - move from "Consulting & Strategy" to "eCommerce" (Delete "Consulting & Strategy" category)
A34: Fry, Inc. | B34: eCommerce Platform | C34: Yes | D34: OK
A35: GSI Commerce | B35: eCommerce Platform | C35: Yes | D35: ADD - to "eCommerce" category
A36: James Tower | B36: eCommerce Platform | C36: Yes | D36: OK
A37: Lagarde | B37: eCommerce Platform | C37: Yes | D37: OK
A38: MarketBright | B38: eCommerce Platform | C38: Yes | D38: ADD - to "eCommerce" category
A39: Marketlive | B39: eCommerce Platform | C39: Yes | D39: ADD - to "eCommerce" category
A40: Media99 LLC | B40: eCommerce Platform | C40: Yes | D40: OK
A41: Motricity | B41: eCommerce Platform | C41: Yes | D41: ADD - to "eCommerce" category
A42: Novator | B42: eCommerce Platform | C42: Yes | D42: ADD - to "eCommerce" category
A43: Project Thunder | B43: eCommerce Platform | C43: Yes | D43: OK
A44: RichFX | B44: eCommerce Platform | C44: Yes | D44: ADD - to "eCommerce" category
A45: Salmon | B45: eCommerce Platform | C45: Yes | D45: OK
A46: Saxotech | B46: eCommerce Platform | C46: Yes | D46: ADD - to "eCommerce" category
A47: Sigma Commerce/Sigma Micro | B47: eCommerce Platform | C47: Yes | D47: ADD - to "eCommerce" category
A48: Snow Valley | B48: eCommerce Platform | C48: Yes | D48: OK
A49: TIG Global | B49: eCommerce Platform | C49: Yes | D49: ADD - to "eCommerce" category
A50: Truition | B50: eCommerce Platform | C50: Yes | D50: ADD - to "eCommerce" category
A51: Vcommerce | B51: eCommerce Platform | C51: Yes | D51: ADD - to "eCommerce" category
A52: Ventura Web Design | B52: eCommerce Platform | C52: Yes | D52: OK
A53: WebLinc | B53: eCommerce Platform | C53: Yes | D53: ADD - to "eCommerce" category
A54: Corsis Technology Group | B54: eCommerce Platform* | C54: Yes | D54: ADD - to "eCommerce" category
A55: DemandWare | B55: eCommerce Platform* | C55: Yes | D55: OK
A56: Devix | B56: eCommerce Platform* | C56: Yes | D56: OK
A57: eCommerce Partners | B57: eCommerce Platform* | C57: Yes | D57: OK
A58: Elastic Path Software Inc. | B58: eCommerce Platform* | C58: Yes | D58: OK
A59: Enigmedia | B59: eCommerce Platform* | C59: Yes | D59: OK
A60: EZ Rez Software | B60: eCommerce Platform* | C60: Yes | D60: OK
A61: Hybris GmbH | B61: eCommerce Platform* | C61: Yes | D61: OK
A62: Juice Media LLC | B62: eCommerce Platform* | C62: Yes | D62: OK
A63: Lagniappe Marketing DBA Dministe | B63: eCommerce Platform* | C63: Yes | D63: ADD - to "eCommerce" category
A64: Macrovision Corporation | B64: eCommerce Platform* | C64: Yes | D64: OK
A65: McClatchy Interactive | B65: eCommerce Platform* | C65: Yes | D65: OK
A66: Mezine | B66: eCommerce Platform* | C66: Yes | D66: OK
A67: Naviataire Inc | B67: eCommerce Platform* | C67: Yes | D67: ADD - to "eCommerce" category
A68: Point & Shop | B68: eCommerce Platform* | C68: Yes | D68: OK
A69: Prosodie Interactive California | B69: eCommerce Platform* | C69: Yes | D69: OK
A70: Rainmaker | B70: eCommerce Platform* | C70: Yes | D70: ADD - to "eCommerce" category
A71: Solid Cactus | B71: eCommerce Platform* | C71: Yes | D71: OK
A72: Speedera | B72: eCommerce Platform* | C72: Yes | D72: ADD - to "eCommerce" category
A73: Synacor | B73: eCommerce Platform* | C73: Yes | D73: OK
A74: Thayer Interactive | B74: eCommerce Platform* | C74: Yes | D74: OK
A75: TravelCLICK, Inc. | B75: eCommerce Platform* | C75: Yes | D75: OK
A76: Venda | B76: eCommerce Platform* | C76: Yes | D76: OK
A77: Zinio | B77: eCommerce Platform* | C77: Yes | D77: ADD - to "eCommerce" category
A78: Return Path | B78: Email Deliverability | C78: Yes | D78: FIX - move from "Email Marketing" to "Email Deliverability"
A79: Acxiom Digital (Formerly: Digital Impact) | B79: Email Marketing | C79: Yes | D79: OK
A80: Alterian | B80: Email Marketing | C80: Yes | D80: OK
A81: BlueHornet (Digital River) | B81: Email Marketing | C81: Yes | D81: OK
A82: Bronto | B82: Email Marketing | C82: Yes | D82: OK
A83: CheetahMail | B83: Email Marketing | C83: Yes | D83: OK
A84: ClickSquared | B84: Email Marketing | C84: Yes | D84: OK
A85: Contactlab | B85: Email Marketing | C85: Yes | D85: OK
A86: Datran | B86: Email Marketing | C86: Yes | D86: FIX - remove duplicate in "Email Marketing" category
A87: DoubleClick Clickm@iler | B87: Email Marketing | C87: Yes | D87: ADD - to "Email Marketing" category
A88: eCircle | B88: Email Marketing | C88: Yes | D88: OK
A89: E-Dialog | B89: Email Marketing | C89: Yes | D89: OK
A90: Emailingsolutions | B90: Email Marketing | C90: Yes | D90: ADD - to "Email Marketing" category
A91: EmailReaction | B91: Email Marketing | C91: Yes | D91: ADD - to "Email Marketing" category
A92: EmailVision | B92: Email Marketing | C92: Yes | D92: OK
A93: Epsilon DREAM (Formerly: Bigfoot) | B93: Email Marketing | C93: Yes | D93: OK
A94: Epsilon DREAMMail (Formerly: DoubleClick DARTmail) | B94: Email Marketing | C94: Yes | D94: OK
A95: eServices | B95: Email Marketing | C95: Yes | D95: OK
A96: ExactTarget | B96: Email Marketing | C96: Yes | D96: OK
A97: Gold Lasso | B97: Email Marketing | C97: Yes | D97: OK
A98: Got | B98: Email Marketing | C98: Yes | D98: VERIFY - is this the same as "Campaigner"? If so, it's OK
A99: Harte-Hanks | B99: Email Marketing | C99: Yes | D99: OK
A100: Inboxmarketer | B100: Email Marketing | C100: Yes | D100: OK
A101: Ipost | B101: Email Marketing | C101: Yes | D101: OK
A102: Knotice | B102: Email Marketing | C102: Yes | D102: OK
A103: Komunik | B103: Email Marketing | C103: Yes | D103: OK
A104: Loyalty Lab | B104: Email Marketing | C104: Yes | D104: OK
A105: Marketbright | B105: Email Marketing | C105: Yes | D105: ADD - to "Email Marketing" category
A106: Merkle/Quris | B106: Email Marketing | C106: Yes | D106: OK
A107: Neolane | B107: Email Marketing | C107: Yes | D107: OK
A108: Optivo | B108: Email Marketing | C108: Yes | D108: OK
A109: Redeye | B109: Email Marketing | C109: Yes | D109: OK
A110: Responsys | B110: Email Marketing | C110: Yes | D110: OK
A111: Rocketseed | B111: Email Marketing | C111: Yes | D111: OK
A112: Sapient (Bridgetrack) | B112: Email Marketing | C112: Yes | D112: FIX - remove duplicate (one under "Bridgetrack" other under "Sapient Bridgetrack"
A113: Silverpop | B113: Email Marketing | C113: Yes | D113: OK
A114: smartFOCUS | B114: Email Marketing | C114: Yes | D114: OK
A115: Strongmail | B115: Email Marketing | C115: Yes | D115: OK
A116: SubscriberMail | B116: Email Marketing | C116: Yes | D116: OK
A117: ThinData | B117: Email Marketing | C117: Yes | D117: OK
A118: Tripolis | B118: Email Marketing | C118: Yes | D118: OK
A119: WhatCounts | B119: Email Marketing | C119: Yes | D119: OK
A120: YesMail | B120: Email Marketing | C120: Yes | D120: OK
A121: Zeta Interactive | B121: Email Marketing | C121: Yes | D121: OK
A122: Digital Envoy | B122: Geolocation | C122: Yes | D122: FIX - move from "Performance Management" to "Other"
A123: InsideSales.com | B123: Lead Management | C123: Yes | D123: OK
A124: Aprimo | B124: Marketing Automation | C124: Yes | D124: FIX - move from "Email Marketing" to "Marketing Automation"
A125: Eloqua | B125: Marketing Automation | C125: Yes | D125: FIX - move from "Email Marketing" to "Marketing Automation"
A126: RightOn Interactive | B126: Marketing Automation | C126: Yes | D126: FIX - move from "CRM/SFA" to "Marketing Automation" category
A127: vTrenz (Silverpop) | B127: Marketing Automation | C127: Yes | D127: FIX - move from "Email Marketing" to "Marketing Automation"
A128: Bango | B128: Mobile | C128: Yes | D128: OK
A129: Divinity Networks | B129: Other | C129: Yes | D129: FIX - do we know what this is? Did we sign it? We don't have it on our list, but it's in the "Rich Media" category
A130: Digital Insight | B130: Other | C130: Yes | D130: FIX - move from "eCommerce" to "Other"
A131: Spotrunner | B131: Other - Offline Media | C131: Yes | D131: FIX - move from "Ad Serving" to "Offline Advertising" category
A132: Atomic Labs | B132: Performance Management | C132: Yes | D132: OK
A133: ClickTale | B133: Performance Management | C133: Yes | D133: FIX - move from "Customer Experience Management" to "Performance Management"
A134: Coradiant | B134: Performance Management | C134: Yes | D134: FIX - move from "Content Source" to "Performance Management" (remove "Content Source" category)
A135: DotCom Monitor | B135: Performance Management | C135: Yes | D135: OK
A136: Radware | B136: Performance Management | C136: Yes | D136: OK
A137: TeaLeaf | B137: Performance Management | C137: Yes | D137: FIX - move from "Customer Experience Management" to "Performance Management"
A138: Baynote | B138: Product Recommendations | C138: Yes | D138: OK
A139: Bazaarvoice | B139: Ratings and Reviews | C139: Yes | D139: OK
A140: PowerReviews | B140: Ratings and Reviews | C140: Yes | D140: OK
A141: ActiveVideoNetworks | B141: Rich Media / Streaming Video | C141: Yes | D141: OK
A142: Adobe | B142: Rich Media / Streaming Video | C142: Yes | D142: FIX - move to "Media Platform"
A143: Allurent | B143: Rich Media / Streaming Video | C143: Yes | D143: OK
A144: Brightcove | B144: Rich Media / Streaming Video | C144: Yes | D144: OK
A145: Fluid | B145: Comparison Shopping | C145: Yes | D145: OK
A146: Ooyala | B146: Rich Media / Streaming Video | C146: Yes | D146: OK
A147: VMIX | B147: Rich Media / Streaming Video | C147: Yes | D147: OK
A148: Kwiry | B148: RSS/SMS | C148: Yes | D148: FIX - move from "Email Marketing" to RSS/SMS
A149: SimpleFeed | B149: RSS/SMS | C149: Yes | D149: FIX - move from "Email Marketing" to RSS/SMS
A150: OrangeSoda | B150: Search Engine Optimization (SEO) | C150: Yes | D150: OK
A151: YourAmigo | B151: Search Engine Optimization (SEO) | C151: Yes | D151: ADD to "Search Engine Optimization" category
A152: AdHere (Formerly: Enhance Interactive) | B152: Search Marketing | C152: Yes | D152: FIX category - should be "Search Marketing" not "Search Marketing Optmization"
A153: Ask.com | B153: Search Marketing | C153: Yes | D153: ADD - to "Search Marketing" category
A154: Baidu.com | B154: Search Marketing | C154: Yes | D154: FIX category - should be "Search Marketing" not "Search Marketing Optmization"
A155: Google | B155: Search Marketing | C155: Yes | D155: ADD - to "Search Marketing" category
A156: LookSmart | B156: Search Marketing | C156: Yes | D156: ADD - to "Search Marketing" category
A157: Microsoft (MSN AdCenter) | B157: Search Marketing | C157: Yes | D157: FIX - use MSN AdCenter logo and not Microsoft logo
A158: MIVA (Espotting) | B158: Search Marketing | C158: Yes | D158: ADD - to "Search Marketing" category
A159: MIVA (Findwhat.com) | B159: Search Marketing | C159: Yes | D159: ADD - to "Search Marketing" category
A160: SearchFeed | B160: Search Marketing | C160: Yes | D160: ADD - to "Search Marketing" category
A161: Yahoo! Search | B161: Search Marketing | C161: Yes | D161: ADD - to "Search Marketing" category
A162: ABC Interactive | B162: Site Auditing / Site Hygiene | C162: Yes | D162: FIX - move from "Performance Management" to "Site Auditing"
A163: Maxamine (Accenture) | B163: Site Auditing / Site Hygiene | C163: Yes | D163: ADD - to "Site Auditing" category
A164: Verified Audit | B164: Site Auditing / Site Hygiene | C164: Yes | D164: OK
A165: Numeric Analytics | B165: Site Optimization | C165: Yes | D165: ADD - to "Other" category
A166: Celebros | B166: Site Search / Information Access | C166: Yes | D166: OK
A167: Endeca | B167: Site Search / Information Access | C167: Yes | D167: OK
A168: Fredhopper | B168: Site Search / Information Access | C168: Yes | D168: OK
A169: Microsoft (Formerly: FAST Search & Transfer) | B169: Site Search / Information Access | C169: Yes | D169: FIX - move from "Information Access" to "Site Search" (and delete "Information Access" category)
A170: SLI Systems | B170: Site Search / Information Access | C170: Yes | D170: OK
A171: Collective Intellect | B171: Social Media | C171: Yes | D171: OK
A172: Keibi | B172: Social Media | C172: Yes | D172: OK
A173: Lithium Technologies | B173: Social Media | C173: Yes | D173: OK
A174: Pluck | B174: Social Media | C174: Yes | D174: OK
A175: ShareThis | B175: Social Media | C175: Yes | D175: FIX - move from "Affiliate Marketing" to "Social Media"
A176: Visible Technologies | B176: Social Media | C176: Yes | D176: FIX - change company name from "Social Media" to "Visible Technologies"
A177: Foresee Results | B177: Survey / Customer Satisfaction Management | C177: Yes | D177: OK
A178: iPerceptions | B178: Survey / Customer Satisfaction Management | C178: Yes | D178: OK
A179: BizRate | B179: Survey / User Experience | C179: No | D179: REMOVE from site and from "Shopping Feed Optimization" category
A180: Leotrace | B180: Survey / User Experience | C180: Yes | D180: ADD - to "User Experience" category
A181: OpinionLab | B181: Survey / User Experience | C181: Yes | D181: OK
A182: Rep Solution | B182: Survey / User Experience | C182: Yes | D182: FIX - move from "Email Marketing" to "User Experience"
A183: Usability Sciences | B183: Survey / User Experience | C183: Yes | D183: OK
A184: MediaForge | B184: Widgets | C184: Yes | D184: FIX - move from "Social Media" to "Widgets"
A185: Yahoo! (BlueLithium) | B185: Ad Network | C185: No
A186: Memetrics | B186: Behavioral Targeting | C186: No
A187: X+1 | B187: Behavioral Targeting | C187: No
A188: Business Objects | B188: Business Intelligence | C188: No
A189: SAP | B189: CRM/SFA | C189: No
A190: DoubleClick DFP (Google) | B190: Display Advertising / Ad Serving | C190: No
A191: Microsoft (Atlas) | B191: Display Advertising / Ad Serving | C191: No
A192: Wingate Studios | B192: Event Registration | C192: No
A193: Kefta (Acxiom Digital) | B193: Landing Page Optimization | C193: No
A194: Maxymiser | B194: Landing Page Optimization | C194: No
A195: Optimost (Interwoven) | B195: Landing Page Optimization | C195: Yes | D195: OK
A196: Widemile | B196: Landing Page Optimization | C196: No
A197: Basis | B197: Linguistics | C197: No
A198: Lionbridge | B198: Linguistics | C198: No
A199: Expresso | B199: Online Collaboration | C199: Yes | D199: FIX - move from "Content Management" to "Other"
A200: Authenticlick | B200: Other | C200: No
... 17 more rows

Sheet List For Look 20081218
A1: Genesis Network Partners
A2: COUNT: 203
A4: NAME | B4: TYPE | C4: DISPLAY
A5: Advertising.com (AOL) | B5: Ad Network | C5: Yes
A6: Dotomi | B6: Ad Network | C6: Yes
A7: Linkshare | B7: Affiliate Marketing | C7: Yes
A8: InstantService | B8: Chat | C8: Yes
A9: LivePerson | B9: Chat | C9: Yes
A10: 800 Pixels | B10: CMS | C10: Yes
A11: Alterian (MediaSurface) | B11: CMS | C11: Yes
A12: Clickability | B12: CMS | C12: Yes
A13: Crownpeak | B13: CMS | C13: Yes
A14: Interwoven | B14: CMS | C14: Yes
A15: SDL Tridian | B15: CMS | C15: Yes
A16: Vignette | B16: CMS | C16: Yes
A17: Mercent | B17: Comparison Shopping | C17: Yes
A18: RightNow Technologies | B18: CRM/SFA | C18: Yes
A19: Salesforce.com | B19: CRM/SFA | C19: Yes
A20: Oracle | B20: Data Warehouse | C20: Yes
A21: Copacast | B21: Database Marketing | C21: Yes
A22: DoubleClick DFA (Google) | B22: Display Advertising / Ad Serving | C22: Yes
A23: Eyeblaster | B23: Display Advertising / Ad Serving | C23: Yes
A24: Pointroll | B24: Display Advertising / Ad Serving | C24: Yes
A25: Sapient (Bridgetrack) | B25: Display Advertising / Ad Serving | C25: Yes
A26: Acumium LLC | B26: eCommerce Platform | C26: Yes
A27: Amazon Enterprise Solutions | B27: eCommerce Platform | C27: Yes
A28: Auspient | B28: eCommerce Platform | C28: Yes
A29: ChannelNet | B29: eCommerce Platform | C29: Yes
A30: Conchango | B30: eCommerce Platform | C30: Yes
A31: DMinSite | B31: eCommerce Platform | C31: Yes
A32: eInBusiness | B32: eCommerce Platform | C32: Yes
A33: Fry, Inc. | B33: eCommerce Platform | C33: Yes
A34: GSI Commerce | B34: eCommerce Platform | C34: Yes
A35: James Tower | B35: eCommerce Platform | C35: Yes
A36: Lagarde | B36: eCommerce Platform | C36: Yes
A37: MarketBright | B37: eCommerce Platform | C37: Yes
A38: Marketlive | B38: eCommerce Platform | C38: Yes
A39: Media99 LLC | B39: eCommerce Platform | C39: Yes
A40: Motricity | B40: eCommerce Platform | C40: Yes
A41: Novator | B41: eCommerce Platform | C41: Yes
A42: Project Thunder | B42: eCommerce Platform | C42: Yes
A43: RichFX | B43: eCommerce Platform | C43: Yes
A44: Salmon | B44: eCommerce Platform | C44: Yes
A45: Saxotech | B45: eCommerce Platform | C45: Yes
A46: Sigma Commerce/Sigma Micro | B46: eCommerce Platform | C46: Yes
A47: Snow Valley | B47: eCommerce Platform | C47: Yes
A48: TIG Global | B48: eCommerce Platform | C48: Yes
A49: Truition | B49: eCommerce Platform | C49: Yes
A50: Vcommerce | B50: eCommerce Platform | C50: Yes
A51: Ventura Web Design | B51: eCommerce Platform | C51: Yes
A52: WebLinc | B52: eCommerce Platform | C52: Yes
A53: Corsis Technology Group | B53: eCommerce Platform* | C53: Yes
A54: DemandWare | B54: eCommerce Platform* | C54: Yes
A55: Devix | B55: eCommerce Platform* | C55: Yes
A56: eCommerce Partners | B56: eCommerce Platform* | C56: Yes
A57: Elastic Path Software Inc. | B57: eCommerce Platform* | C57: Yes
A58: Enigmedia | B58: eCommerce Platform* | C58: Yes
A59: EZ Rez Software | B59: eCommerce Platform* | C59: Yes
A60: Hybris GmbH | B60: eCommerce Platform* | C60: Yes
A61: Juice Media LLC | B61: eCommerce Platform* | C61: Yes
A62: Lagniappe Marketing DBA Dministe | B62: eCommerce Platform* | C62: Yes
A63: Macrovision Corporation | B63: eCommerce Platform* | C63: Yes
A64: McClatchy Interactive | B64: eCommerce Platform* | C64: Yes
A65: Mezine | B65: eCommerce Platform* | C65: Yes
A66: Naviataire Inc | B66: eCommerce Platform* | C66: Yes
A67: Point & Shop | B67: eCommerce Platform* | C67: Yes
A68: Prosodie Interactive California | B68: eCommerce Platform* | C68: Yes
A69: Rainmaker | B69: eCommerce Platform* | C69: Yes
A70: Solid Cactus | B70: eCommerce Platform* | C70: Yes
A71: Speedera | B71: eCommerce Platform* | C71: Yes
A72: Synacor | B72: eCommerce Platform* | C72: Yes
A73: Thayer Interactive | B73: eCommerce Platform* | C73: Yes
A74: TravelCLICK, Inc. | B74: eCommerce Platform* | C74: Yes
A75: Venda | B75: eCommerce Platform* | C75: Yes
A76: Zinio | B76: eCommerce Platform* | C76: Yes
A77: Return Path | B77: Email Deliverability | C77: Yes
A78: Acxiom Digital (Formerly: Digital Impact) | B78: Email Marketing | C78: Yes
A79: Alterian | B79: Email Marketing | C79: Yes
A80: BlueHornet (Digital River) | B80: Email Marketing | C80: Yes
A81: Bronto | B81: Email Marketing | C81: Yes
A82: CheetahMail | B82: Email Marketing | C82: Yes
A83: ClickSquared | B83: Email Marketing | C83: Yes
A84: Contactlab | B84: Email Marketing | C84: Yes
A85: Datran | B85: Email Marketing | C85: Yes
A86: DoubleClick Clickm@iler | B86: Email Marketing | C86: Yes
A87: eCircle | B87: Email Marketing | C87: Yes
A88: E-Dialog | B88: Email Marketing | C88: Yes
A89: Emailingsolutions | B89: Email Marketing | C89: Yes
A90: EmailReaction | B90: Email Marketing | C90: Yes
A91: EmailVision | B91: Email Marketing | C91: Yes
A92: Epsilon DREAM (Formerly: Bigfoot) | B92: Email Marketing | C92: Yes
A93: Epsilon DREAMMail (Formerly: DoubleClick DARTmail) | B93: Email Marketing | C93: Yes
A94: eServices | B94: Email Marketing | C94: Yes
A95: ExactTarget | B95: Email Marketing | C95: Yes
A96: Gold Lasso | B96: Email Marketing | C96: Yes
A97: Got | B97: Email Marketing | C97: Yes
A98: Harte-Hanks | B98: Email Marketing | C98: Yes
A99: Inboxmarketer | B99: Email Marketing | C99: Yes
A100: Ipost | B100: Email Marketing | C100: Yes
A101: Knotice | B101: Email Marketing | C101: Yes
A102: Komunik | B102: Email Marketing | C102: Yes
A103: Loyalty Lab | B103: Email Marketing | C103: Yes
A104: Marketbright | B104: Email Marketing | C104: Yes
A105: Merkle/Quris | B105: Email Marketing | C105: Yes
A106: Neolane | B106: Email Marketing | C106: Yes
A107: Optivo | B107: Email Marketing | C107: Yes
A108: Redeye | B108: Email Marketing | C108: Yes
A109: Responsys | B109: Email Marketing | C109: Yes
A110: Rocketseed | B110: Email Marketing | C110: Yes
A111: Sapient (Bridgetrack) | B111: Email Marketing | C111: Yes
A112: Silverpop | B112: Email Marketing | C112: Yes
A113: smartFOCUS | B113: Email Marketing | C113: Yes
A114: Strongmail | B114: Email Marketing | C114: Yes
A115: SubscriberMail | B115: Email Marketing | C115: Yes
A116: ThinData | B116: Email Marketing | C116: Yes
A117: Tripolis | B117: Email Marketing | C117: Yes
A118: WhatCounts | B118: Email Marketing | C118: Yes
A119: YesMail | B119: Email Marketing | C119: Yes
A120: Zeta Interactive | B120: Email Marketing | C120: Yes
A121: Digital Envoy | B121: Geolocation | C121: Yes
A122: InsideSales.com | B122: Lead Management | C122: Yes
A123: Aprimo | B123: Marketing Automation | C123: Yes
A124: Eloqua | B124: Marketing Automation | C124: Yes
A125: RightOn Interactive | B125: Marketing Automation | C125: Yes
A126: vTrenz (Silverpop) | B126: Marketing Automation | C126: Yes
A127: Bango | B127: Mobile | C127: Yes
A128: Digital Insight | B128: Other | C128: Yes
A129: Spotrunner | B129: Other - Offline Media | C129: Yes
A130: Atomic Labs | B130: Performance Management | C130: Yes
A131: ClickTale | B131: Performance Management | C131: Yes
A132: Coradiant | B132: Performance Management | C132: Yes
A133: DotCom Monitor | B133: Performance Management | C133: Yes
A134: Radware | B134: Performance Management | C134: Yes
A135: TeaLeaf | B135: Performance Management | C135: Yes
A136: Baynote | B136: Product Recommendations | C136: Yes
A137: Bazaarvoice | B137: Ratings and Reviews | C137: Yes
A138: PowerReviews | B138: Ratings and Reviews | C138: Yes
A139: ActiveVideoNetworks | B139: Rich Media / Streaming Video | C139: Yes
A140: Adobe | B140: Rich Media / Streaming Video | C140: Yes
A141: Allurent | B141: Rich Media / Streaming Video | C141: Yes
A142: Brightcove | B142: Rich Media / Streaming Video | C142: Yes
A143: Fluid | B143: Rich Media / Streaming Video | C143: Yes
A144: Ooyala | B144: Rich Media / Streaming Video | C144: Yes
A145: VMIX | B145: Rich Media / Streaming Video | C145: Yes
A146: Kwiry | B146: RSS/SMS | C146: Yes
A147: SimpleFeed | B147: RSS/SMS | C147: Yes
A148: OrangeSoda | B148: Search Engine Optimization (SEO) | C148: Yes
A149: YourAmigo | B149: Search Engine Optimization (SEO) | C149: Yes
A150: AdHere (Formerly: Enhance Interactive) | B150: Search Marketing | C150: Yes
A151: Ask.com | B151: Search Marketing | C151: Yes
A152: Baidu.com | B152: Search Marketing | C152: Yes
A153: Google | B153: Search Marketing | C153: Yes
A154: LookSmart | B154: Search Marketing | C154: Yes
A155: Microsoft (MSN AdCenter) | B155: Search Marketing | C155: Yes
A156: MIVA (Espotting) | B156: Search Marketing | C156: Yes
A157: MIVA (Findwhat.com) | B157: Search Marketing | C157: Yes
A158: SearchFeed | B158: Search Marketing | C158: Yes
A159: Yahoo! Search | B159: Search Marketing | C159: Yes
A160: ABC Interactive | B160: Site Auditing / Site Hygiene | C160: Yes
A161: Maxamine (Accenture) | B161: Site Auditing / Site Hygiene | C161: Yes
A162: Verified Audit | B162: Site Auditing / Site Hygiene | C162: Yes
A163: Numeric Analytics | B163: Site Optimization | C163: Yes
A164: Celebros | B164: Site Search / Information Access | C164: Yes
A165: Endeca | B165: Site Search / Information Access | C165: Yes
A166: Fredhopper | B166: Site Search / Information Access | C166: Yes
A167: Microsoft (Formerly: FAST Search & Transfer) | B167: Site Search / Information Access | C167: Yes
A168: SLI Systems | B168: Site Search / Information Access | C168: Yes
A169: Collective Intellect | B169: Social Media | C169: Yes
A170: Keibi | B170: Social Media | C170: Yes
A171: Lithium Technologies | B171: Social Media | C171: Yes
A172: Pluck | B172: Social Media | C172: Yes
A173: ShareThis | B173: Social Media | C173: Yes
A174: Visible Technologies | B174: Social Media | C174: Yes
A175: Foresee Results | B175: Survey / Customer Satisfaction Management | C175: Yes
A176: iPerceptions | B176: Survey / Customer Satisfaction Management | C176: Yes
A177: BizRate | B177: Survey / User Experience | C177: Yes
A178: Leotrace | B178: Survey / User Experience | C178: Yes
A179: OpinionLab | B179: Survey / User Experience | C179: Yes
A180: Rep Solution | B180: Survey / User Experience | C180: Yes
A181: Usability Sciences | B181: Survey / User Experience | C181: Yes
A182: MediaForge | B182: Widgets | C182: Yes
A183: Yahoo! (BlueLithium) | B183: Ad Network | C183: No
A184: Memetrics | B184: Behavioral Targeting | C184: No
A185: X+1 | B185: Behavioral Targeting | C185: No
A186: Business Objects | B186: Business Intelligence | C186: No
A187: SAP | B187: CRM/SFA | C187: No
A188: DoubleClick DFP (Google) | B188: Display Advertising / Ad Serving | C188: No
A189: Microsoft (Atlas) | B189: Display Advertising / Ad Serving | C189: No
A190: Wingate Studios | B190: Event Registration | C190: No
A191: Kefta (Acxiom Digital) | B191: Landing Page Optimization | C191: No
A192: Maxymiser | B192: Landing Page Optimization | C192: No
A193: Optimost (Interwoven) | B193: Landing Page Optimization | C193: No
A194: Widemile | B194: Landing Page Optimization | C194: No
A195: Basis | B195: Linguistics | C195: No
A196: Lionbridge | B196: Linguistics | C196: No
A197: Expresso | B197: Online Collaboration | C197: No
A198: Authenticlick | B198: Other | C198: No
A199: Claritas/Prism | B199: Other | C199: No
A200: Web Collage | B200: Product Catalog | C200: No
A201: MyBuys | B201: Product Recommendations | C201: No
... 6 more rows

Sheet Coop Partner Analysis (hidden)
A1: Count of Opportunity Name | B1: Column Labels | G1: Genesis $ 2007 - 2008 | I1: Customer Integrations | K1: Marketing & Sponsorship $
A2: Row Labels | B2: D - Agreement Pending | C2: E - Accreditation Queue | D2: G - Accreditation Complete | E2: H - Ongoing Effort Required | F2: Grand Total | G2: 2007 | H2: YTD 2008 | I2: 2007 | J2: YTD 2008 | K2: 2007 | L2: YTD 2008
A3: Behavioral Targeting | D3: 2 | F3: 2 | G3: 0 | H3: 0 | I3: 1 | J3: 0 | K3: 0 | L3: 0
A4: Memetrics | D4: 1 | F4: 1
A5: X+1 | D5: 1 | F5: 1
A6: Landing Page Optimization | B6: 1 | C6: 1 | D6: 3 | F6: 5 | G6: 22310 | H6: 0 | I6: 3 | J6: 0 | K6: =SUM(K7:K11) -> 10000 | L6: =SUM(L7:L11) -> 0
A7: Kefta (Acxiom Digital) | D7: 1 | F7: 1 | K7: 5000
A8: Naehas | B8: 1 | F8: 1
A9: Offermatica | D9: 1 | F9: 1
A10: Optimost | D10: 1 | F10: 1 | K10: 5000
A11: Widemile | C11: 1 | F11: 1
A12: Product Recommendations | C12: 1 | F12: 1 | G12: 0 | H12: 0 | I12: 0 | J12: 0 | K12: =K13 -> 15000 | L12: =L13 -> 30600
A13: Baynote | C13: 1 | F13: 1 | K13: 15000 | L13: 30600
A14: Site Search / Information Access | B14: 3 | C14: 1 | D14: 5 | E14: 1 | F14: 10 | G14: =187660+11000 -> 198660 | H14: =SUM(H15:H24) -> 153790.13 | I14: =16+1 -> 17 | J14: 11 | K14: =SUM(K15:K24) -> 55850 | L14: =SUM(L15:L24) -> 133900
A15: Atomz (Site Search) | D15: 1 | F15: 1
A16: Celebros | C16: 1 | F16: 1
A17: EasyAsk | B17: 1 | F17: 1
A18: Endeca | E18: 1 | F18: 1 | H18: 16000 | J18: 1 | K18: 30000 | L18: 50800
A19: FAST Search | D19: 1 | F19: 1 | H19: 26547 | J19: 1 | K19: 1350
A20: Fred Hopper | D20: 1 | F20: 1 | L20: 22400
A21: Inquira | B21: 1 | F21: 1
A22: Intelliresponse | B22: 1 | F22: 1
A23: Mercado | D23: 1 | F23: 1 | H23: =4500+4250+7850+12000+7860+18300+14466.9+25064+16952.23 -> 111243.13 | J23: 9 | K23: 21000 | L23: 51700
A24: SLI Systems | D24: 1 | F24: 1 | K24: 3500 | L24: 9000
A25: Survey / User Experience | B25: 2 | C25: 3 | D25: 1 | F25: 6 | G25: ='2007 Statistics'!D32+'2007 Statistics'!D41 -> 74470 | H25: =SUM(H26:H31) -> 13800 | I25: ='2007 Statistics'!C32+'2007 Statistics'!C41 -> 8 | J25: 2 | K25: =SUM(K26:K31) -> 24550 | L25: =SUM(L26:L31) -> 0
A26: BizRate | C26: 1 | F26: 1
A27: Insight Express | B27: 1 | F27: 1
A28: Leotrace | C28: 1 | F28: 1
A29: OpinionLab | D29: 1 | F29: 1 | H29: =6000+7800 -> 13800 | J29: 2 | K29: 24550 | L29: 0
A30: Rep Solution | B30: 1 | F30: 1
A31: Usability Sciences | C31: 1 | F31: 1
A32: Grand Total | B32: 6 | C32: 6 | D32: 11 | E32: 1 | F32: 24 | G32: =G6+G12+G14+G25 -> 295440 | H32: 167590.13 | I32: 28 | J32: 13 | K32: 105400 | L32: 164500
G33: =G32/'2007 Statistics'!D74 -> 0.2415716878 | H33: =H32/1229643 -> 0.136291696 | I33: =I32/4000 -> 0.007 | J33: =J32/4700 -> 0.002765957447 | K33: =K32/627905 -> 0.1678597877 | L33: =L32/1378400 -> 0.1193412652
G34: of Total | H34: of Total YTD | I34: of Total | J34: of Total | K34: of Total | L34: of Total YTD
G35: 2007 Genesis | H35: 2008 Genesis | I35: Customers | J35: Customers | K35: 2007 Mktg | L35: 2008 Mktg
G36: Revenue | H36: Revenue | I36: Q4 2007 | J36: Q2 2008 | K36: Sponsorship | L36: Sponsorship

Sheet 2007 Statistics (hidden)
A1: 2007 PARTNER & GENESIS STATISTICS
A2: (As of Dec 13, 2007)
A5: PARTNER STATISTICS | B5: Count of Signed Partners
B6: Partners Signed | C6: Total | E6: Accredited/Evolving | G6: Pending
C7: 104 | E7: 35 | G7: 69
B8: By Category:
B9: (1) Email Marketing | C9: 35 | E9: 8 | G9: 27
B10: (2) Search Marketing | C10: 11 | E10: 9 | G10: 2
B11: (3) Information Access/Internal Search | C11: 8 | E11: 3 | G11: 5
B12: (4) CMS | C12: 5 | E12: 0 | G12: 5
B13: (5) User Experience/Surveys | C13: 5 | E13: 2 | G13: 3
B14: (6) Landing Page Optimixation | C14: 4 | E14: 3 | G14: 1
B15: (7) Ad Network | C15: 3 | E15: 1 | G15: 2
B16: (8) Ad Serving | C16: 3 | E16: 1 | G16: 2
B17: (9) Performance Management | C17: 3 | E17: 0 | G17: 3
B18: (10) Remaining | C18: 27 | E18: 7 | G18: 19
B19: Partner Fee
B20: Partner Fee Revenue | C20: Total | E20: Accredited/Evolving | G20: Pending
C21: 343940 | E21: 41140 | G21: 302800
B22: Partner Fee Count | C22: Fee | D22: No Fee | E22: Fee | F22: No Fee | G22: Fee | H22: No Fee
C23: 30 | D23: 74 | E23: 2 | F23: 33 | G23: 28 | H23: 41
B24: Integrations by Partner Category
B25: Partner Integrations | C25: Total | D25: ACV | E25: % of ACV
C26: 93 | D26: 1222991 | E26: 1
B27: By Category:
B28: (1) Email Marketing | C28: 41 | D28: 446020 | E28: =D28/D26 -> 0.3646960607
B29: (2) Ad Serving | C29: 17 | D29: 394340.66 | E29: =D29/D26 -> 0.3224395437
B30: (3) Information Access/Internal Search | C30: 16 | D30: 187660 | E30: =D30/D26 -> 0.153443484
B31: (4) CRM/SFA | C31: 8 | D31: 97950 | E31: =D31/D26 -> 0.08009053215
B32: (5) User Experience/Surveys | C32: 6 | D32: 63150 | E32: =D32/D26 -> 0.05163570296
B33: (6) Landing Page Optimization | C33: 3 | D33: 22310 | E33: =D33/D26 -> 0.01824216204
B34: (7) Ratings & Reviews | C34: 2 | D34: 11560 | E34: =D34/D26 -> 0.009452236362
B35: Partner Integrations (Pipeline - Q407 & Q108) | C35: Total | D35: ACV | E35: % of ACV
C36: 30 | D36: 399673 | E36: 1
B37: By Category:
B38: (1) Email Marketing | C38: 20 | D38: 233383 | E38: =D38/D36 -> 0.5839348668
B39: (2) CRM/SFA | C39: 3 | D39: 97000 | E39: =D39/D36 -> 0.2426984059
B40: (3) Ad Serving | C40: 4 | D40: 46970 | E40: =D40/D36 -> 0.1175210735
B41: (4) User Experience/Surveys | C41: 2 | D41: 11320 | E41: =D41/D36 -> 0.02832315418
B42: (5) Information Access/Internal Search | C42: 1 | D42: 11000 | E42: =D42/D36 -> 0.02752249964
B43: Partner Pipeline
B44: # Partner Prospects (Pending Agreements) | C44: Total | D44: Fee | E44: No Fee | F44: ACV
C45: 23 | D45: 16 | E45: 7 | F45: 160000
B46: By Category:
B47: (1) Email Marketing | C47: 8 | D47: 6 | E47: 2 | F47: 60000
B48: (2) Other | C48: 5 | D48: 5 | E48: 0 | F48: 50000
B49: (3) Information Access/Internal Search | C49: 2 | D49: 1 | E49: 1 | F49: 10000
B50: (4) User Experience/Surveys | C50: 2 | D50: 2 | E50: 0 | F50: 20000
B51: (5) Ad Serving | C51: 1 | D51: 1 | E51: 0 | F51: 10000
B52: (6) Content Delivery | C52: 1 | D52: 0 | E52: 1 | F52: 0
B53: (7) CRM/SFA | C53: 1 | D53: 0 | E53: 1 | F53: 0
B54: (8) Landing Page Optimization | C54: 1 | D54: 1 | E54: 0 | F54: 10000
B55: (9) Search Marketing | C55: 1 | D55: 0 | E55: 1 | F55: 0
B56: (10) Site Auditing | C56: 1 | D56: 0 | E56: 1 | F56: 0
B57: # Partner Prospects (Dialogue) | C57: Total
C58: 41
B59: By Category:
B60: (1) Email Marketing | C60: 9
B61: (2) Ad Serving | C61: 5
B62: (3) CMS | C62: 5
B63: (4) Affiliate Marketing | C63: 3
B64: (5) Information Access/Internal Search | C64: 2
B65: (6) Performance Management | C65: 2
B66: (7) User Experience/Surveys | C66: 2
B67: (8) Other/Remaining | C67: 13
B68: # Partner Prospects (Contact Made) | C68: Total
C69: 92
A72: GENESIS STATISTICS | B72: Genesis Customers
B73: Genesis Customers | C73: Count | D73: Genesis ACV (Total) | E73: Genesis ACV (Ave per Customer) | F73: Genesis ACV (Setup) | G73: Genesis ACV (Annualized Monthly)
C74: 78 | D74: 1222991 | E74: =D74/C74 -> 15679.37179 | F74: 380519 | G74: 842472
B75: By Top 5 Partners:
B76: (1) DoubleClick (DFA) | C76: 17 | D76: 394341 | E76: =D76/C76 -> 23196.52941
B77: (2) Epsilon | C77: 13 | D77: 123320 | E77: 9486.153846
B78: (3) Endeca | C78: 11 | D78: 151200 | E78: 13745.45455
B79: (4) Responsys | C79: 7 | D79: 93000 | E79: 13285.71429
B80: (5) Salesforce | C80: 8 | D80: 50000 | E80: 6250
B81: (6) Remaining | C81: =C74-SUM(C76:C80) -> 22 | D81: =D74-SUM(D76:D80) -> 411130 | E81: 18687.72727
B82: Genesis Integrations
B83: Genesis Integrations | C83: Total | E83: Completed | G83: Pending
C84: Count | D84: ACV | E84: Count | F84: ACV | G84: Count | H84: ACV
C85: 93 | D85: $1,222,991 (Total) | E85: 22 | F85: $479,629 (Total) | G85: 71 | H85: $743,362 (Total)
D86: $380,519 (Setup) | F86: $160,405 (Setup) | H86: $220,114 (Setup)
D87: $842,472 (Monthly) | F87: $319,224 (Monthly) | H87: $523,248 (Monthly)
B88: By Top 5 Partners:
B89: (1) DoubleClick (DFA) | C89: 17 | E89: 8 | G89: =C89-E89 -> 9
B90: (2) Epsilon | C90: 13 | E90: 4 | G90: =C90-E90 -> 9
B91: (3) Endeca | C91: 11 | E91: 1 | G91: =C91-E91 -> 10
B92: (4) Responsys | C92: 7 | E92: 2 | G92: =C92-E92 -> 5
B93: (5) Salesforce | C93: 8 | E93: 0 | G93: =C93-E93 -> 8
B94: (6) Remaining | C94: 37 | E94: =E85-SUM(E89:E93) -> 7 | G94: =G85-SUM(G89:G93) -> 30
B95: Lift via Genesis (Based on Top 5 Partners)
B96: Genesis Customers: Top 5 Partners | C96: Count | D96: Genesis ACV (Total) | E96: Genesis ACV (Adjusted to SiteCatalyst ACV) | G96: SiteCatalyst ACV (Where Available) | H96: SiteCatalyst Lift (via Genesis)
B97: (1) DoubleClick (DFA) | C97: 17 | D97: 394341 | E97: 326852 | G97: 1081837 | H97: =E97/G97 -> 0.3021268454
B98: (2) Epsilon | C98: 13 | D98: 123320 | E98: 118950 | G98: 716051 | H98: 0.1661194524
B99: (3) Endeca | C99: 11 | D99: 151200 | E99: 83460 | G99: 273254 | H99: 0.3054301126
B100: (4) Responsys | C100: 7 | D100: 93000 | E100: 93000 | G100: 231460 | H100: 0.4017972868
B101: (5) Salesforce | C101: 8 | D101: 50000 | E101: 50000 | G101: 45474 | H101: 1.099529401
B102: Top 5 Total | C102: =SUM(C97:C101) -> 56 | D102: =SUM(D97:D101) -> 811861 | E102: =SUM(E97:E101) -> 672262 | G102: =SUM(G97:G101) -> 2348076 | H102: 0.2863033394
B103: Genesis Pipeline
B104: Genesis Pipeline (Q407 - Q108): Sales Stage 6 ("Proposal") and Beyond | C104: Count | D104: Genesis ACV (Total) | E104: Genesis ACV (Ave per Customer) | F104: Genesis ACV (Setup) | G104: Genesis ACV (Annualized Monthly)
C105: 30 | D105: 399665 | E105: =D105/C105 -> 13322.16667 | F105: 186605 | G105: =17755*12 -> 213060
B106: By Top 5 Partners:
B107: (1) ExactTarget | C107: 9 | D107: 107511 | E107: =D107/C107 -> 11945.66667
B108: (2) Salesforce | C108: 3 | D108: 97000 | E108: 32333.33333
B109: (3) Epsilon | C109: 2 | D109: 50000 | E109: 25000
B110: (4) DoubleClick (DFA) | C110: 4 | D110: 46970 | E110: 11742.5
B111: (5) Silverpop | C111: 4 | D111: 35720 | E111: 8930
B112: (6) Remaining | C112: =C105-SUM(C107:C111) -> 8 | D112: =D105-SUM(D107:D111) -> 62464 | E112: 7808
B113: Lift via Genesis (Based on Top 5 Partners)
B114: Genesis Pipeline: Top 5 Partners | C114: Count | D114: Genesis ACV (Total) | E114: Genesis ACV (Adjusted to SiteCatalyst ACV) | G114: SiteCatalyst ACV (Where Available) | H114: SiteCatalyst Lift (via Genesis)
B115: (1) ExactTarget | C115: 9 | D115: 107511 | E115: 92761 | G115: 74185 | H115: =E115/G115 -> 1.250401024
B116: (2) Salesforce | C116: 3 | D116: 97000 | E116: 97000 | F116: 97000 | G116: 27000 | H116: 3.592592593
B117: (3) Epsilon | C117: 2 | D117: 50000 | E117: 36000 | F117: 36000 | G117: 18164 | H117: 1.981942303
B118: (4) DoubleClick (DFA) | C118: 4 | D118: 46970 | E118: 33300 | F118: 33300 | G118: 55392 | H118: 0.601169844
B119: (5) Silverpop | C119: 4 | D119: 35720 | E119: 26050 | F119: 26050 | G119: 51278 | H119: 0.5080151332
B120: Top 5 Total | C120: =SUM(C115:C119) -> 22 | D120: =SUM(D115:D119) -> 337201 | E120: =SUM(E115:E119) -> 285111 | G120: =SUM(G115:G119) -> 226019 | H120: 1.261447046

Sheet Dashboard A
A1: STRATEGIC ALLIANCES DASHBOARD
A2: 2009-07-06
A4: Partner Callouts
A5: Category | B5: Stage | C5: Priority | D5: Name | E5: Technology Type | F5: Strat Alliances | G5: Status (1 to 5) | H5: Comments
A6: New Partner Pipeline | B6: C - Initial Call/Meeting | C6: I - Focused Management | D6: Attributor | E6: Social Media | F6: Tim Hong | G6: 4 | H6: This seems to be more Product focused…not good fit for Genesis--work with Jordan
D7: ComScore | E7: Audience Measurement | F7: David Humpherys | G7: 4 | H7: Belkin/Cook have met to discuss methodology - Watson/Belkin/Mellor meeting today to discuss.
D8: WPP: Dynamic Logic | E8: Brand Measurement | F8: Aaron Watson | G8: 5 | H8: Watson/Surles in NY this week to scope tech solution.
D9: Experian | E9: Offline Data | F9: Aaron Watson | G9: 5 | H9: Surles engaged on moving proof of concept forward. Experian rescheduled twice last week (tech guy was out sick). Watson will be in NY this week and will drop in on Experian/Cheetah.
D10: HitWise | E10: Audience Measurement | F10: Aaron Watson | G10: 5 | H10: Watson/Surles to meet with Luke on site in New York this week. HitWise is reviewing tech documentation - concept is to take them down a path similar to Compete.
D11: Nielsen | E11: Audience Measurement | F11: Aaron Watson | G11: 3 | H11: Brian/Verl running point on current dialog. Watson in the wings awaiting cue to engage.
D12: Yahoo! Video | E12: Rich Media / Streaming Video | F12: Tim Hong | G12: 5 | H12: Hong held call to solidify relationship. Y! Video ok with our use of their API.
D13: MySpace Video | E13: Rich Media / Streaming Video | F13: Tim Hong | G13: 3 | H13: 6/24 no response from Gerardo Capiel VP Product Management (Previous Digital Impact)
D14: MSN Video | E14: Rich Media / Streaming Video | F14: Tim Hong | G14: 5 | H14: 6/22 call with Kim Oberg-MSN OK with us using scraping/spidering site-
B15: D - Agreement Pending | D15: Yahoo! (APT) | E15: Display Advertising / Ad Serving | F15: David Humpherys | G15: 4 | H15: Humpherys met with them last week. They're pushing their content match - Humpherys engaged Mungovan on search-related dialog.
D16: Brightcove | E16: Rich Media / Streaming Video | F16: David Humpherys | G16: 4 | H16: Excellent cooperation on the CMO dashboard; Brightcove tracking solution is available from Omniture
B17: E - Accreditation Queue | D17: ValueClick (Ad Network) | E17: Ad Network | F17: David Humpherys | G17: 5 | H17: No Ad Network integration is scoped but could be useful in remarketing scenarios
D18: ValueClick (Comm.Junc.) | E18: Affiliate Marketing | F18: David Humpherys | G18: 4 | H18: In Lamont's accreditation queue - scheduled to begin next week
D19: ValueClick (MediaPlex) | E19: Display Advertising / Ad Serving | F19: David Humpherys | G19: 2 | H19: On hold until ES can get up to speed on ad serving integrations and complete Atlas and Pointroll; Mediaplex is getting anxious
D20: Premiere Global | E20: Email Marketing | F20: Tim Hong | G20: 5 | H20: Accredited 5/21/09
B21: B - Contact Made | C21: II - Proactive Management | D21: Aegis Media (Bluestreak ) | E21: Display Advertising / Ad Serving | F21: Aaron Watson | G21: 3 | H21: No real movement here. Still with Channel.
D22: Overtone | E22: Social Media | F22: Tim Hong | G22: 4 | H22: 6/25 Continued interest--sending partner program materials
B23: C - Initial Call/Meeting | D23: Twitter | E23: Social Media | F23: Tim Hong | G23: 5 | H23: Still no response as to what they needed their help with. Tim continues to reach out.
D24: LiveWorld | E24: Social Media | F24: Tim Hong | G24: 5 | H24: OCS consultant assigned-getting close to being complete
D25: Scout Labs | E25: Social Media | F25: Tim Hong | G25: 4 | H25: 6/16 On-site meeting with OMTR Corp Dev/Mellor/engineering
D26: Rubicon Project | E26: Display Advertising / Ad Serving | F26: David Humpherys | G26: 2 | H26: Rubicon anxious to announce something together; Scottrade campaign launched but has encountered problems (90% of ads displayed are control)--Siddharth leading the diagnosis & repair
B27: B - Contact Made | C27: III - Reactive Management | D27: Oracle (Siebel) | E27: CRM/SFA | F27: David Humpherys | G27: 3 | H27: Let them know that we're releasing new APIs this year; we have the option of doing the integration when we have the resources
D28: Oracle (DW) | E28: Data Warehouse | F28: Bryan Surles | G28: 4 | H28: Surles has them on hold.
D29: Trillium | E29: Data Warehouse | F29: Bryan Surles | G29: 4 | H29: Surles has them on hold.
D30: DataFlux | E30: Data Warehouse | F30: Bryan Surles | G30: 3 | H30: 20090506 update call---looks like they are not going to be the right tech fit right now….
B31: D - Agreement Pending | D31: IBM Websphere | E31: CMS | F31: Aaron Watson | G31: 3 | H31: Diener leading the charge.
D32: Teradata | E32: Data Warehouse | F32: Tim Hong | G32: 4 | H32: 6/22 Follow up call, put them in touch with Nordea, still waiting on contract; Wade pushing back on their one-sided terms of the agreement
A33: Partner Maintenance | B33: E - Accreditation Queue | C33: I - Focused Management | D33: Bango | E33: Mobile | F33: David Humpherys | G33: 2 | H33: Bekin/Hewitt have competitive concerns.
D34: IBM Lotus/WebSphere Portal | E34: Portal | F34: Aaron Watson | G34: 5 | H34: Parkin/Lamont at the IBM Impact show few weeks ago; Decent press coverage
D35: Adobe | E35: Rich Media / Streaming Video | F35: Aaron Watson | G35: 4 | H35: Watson/Wareham offered Sandbox access to Ed. Calls cheduled for Wed this week to review it it with him.
D36: WPP (24/7 RealMedia) | E36: Display Advertising / Ad Serving | F36: David Humpherys | G36: 5 | H36: Dominion moving ahead via Flat File. API approach will be the long-term solutoin.
D37: WPP (Compete) | E37: Audience Measurement | F37: Aaron Watson | G37: 5 | H37: Watson/Coby/Minich/Parkin/Wareham landed on pricing to offer customers. Watson/Minich to communicate to Compete. Watson/Dimarco still in dialog on what phase II could look like.
D38: WPP (TNS Media Intelligence) | E38: Media Measurement | F38: Aaron Watson | G38: 5 | H38: Watson/Surles in NY this week to scope tech solution.
D39: Aprimo | E39: Marketing Automation | F39: Tim Hong | G39: 3 | H39: Arpimo on Demand working with OCS, Aprimo Enterprise working on email integration--did CMO demo 6/12
D40: Liveperson | E40: Chat | F40: Tim Hong | G40: 5 | H40: Issues with data transfer methodology-could make integration very expensive
D41: Pluck | E41: Social Media | F41: Tim Hong | G41: 3 | H41: Issues with data transfer methodology-could make integration very expensive
D42: Visible Technologies | E42: Social Media | F42: Tim Hong | G42: 5 | H42: Working through CMO dashboards, delivered beta agreement to them 6/5-working on CMO dashboard PR quote
D43: Microsoft (Atlas) | E43: Display Advertising / Ad Serving | F43: Aaron Watson | G43: 4 | H43: Watson has placeholder for meeting with Atlas later this afternoon - need to have Jared Cook talk "tech" with their tech guy (won't solve all issues, but get them comfortable with general direction). Awaiting confirmation on meeting from Atlas. Still awaiting press release draft from Marketing. Big question here will be working through "who" makes the decisions on the creativs.
B44: F - Accreditation In Progress | D44: Eyeblaster | E44: Display Advertising / Ad Serving | F44: David Humpherys | G44: 2 | H44: Need greater urgency from Engineering in solving issues around the beta integrations; the integration appears to be setup properly but is not functioning correctly for either beta customer; adding a third beta (probably Interstate Battery)
D45: Pointroll | E45: Display Advertising / Ad Serving | F45: David Humpherys | G45: 4 | H45: ES to work with Pointroll following Atlas
B46: H - Ongoing Effort Required | D46: DoubleClick DFA (Google) | E46: Display Advertising / Ad Serving | F46: Aaron Watson | G46: 4 | H46: Watson meeting in-person with Ari in NY this week.
D47: Ask.com | E47: Search Marketing | F47: Aaron Watson | G47: 5 | H47: Watson sent email regarding switch to Ask.com.
D48: Google (Ad Planner) | E48: Display Advertising / Ad Serving | F48: Aaron Watson | G48: 3 | H48: Watson/Surles/Cook met with Ad Planner Prod Mgr this week and sucked out bunch of tech details. Watson/Mellor/Belkin/Cook need to meet and discuss level of involvement.
D49: Google (Search) | E49: Search Marketing | F49: Aaron Watson | G49: 1 | H49: Ask results are exactly the same as the previous Google results since it's the same feed; Pure comparison with Ask can only be done with a suitable feed (we only have 3 customers on an Ask feed) - but we can confirm the ask feed yields better results than the current Google network we're on; What we don't have are the financial comparisons (though Ask is confident they'll beat Google)
D50: Vignette | E50: CMS | F50: David Humpherys | G50: 2 | H50: Channel taking the lead in post Vignette acquisition negotiations - looking at re-doing agreements
D51: YesMail | E51: Email Marketing | F51: Tim Hong | G51: 5 | H51: Very intterested in integrating with Twitter/T@T, Recommendations, could be first integration with REC
B52: E - Accreditation Queue | C52: II - Proactive Management | D52: Conductor | E52: SEO | F52: David Humpherys | G52: 5 | H52: Bigler and Humpherys working on integration via APIs
B53: F - Accreditation In Progress | D53: Superpages | E53: Search Marketing | F53: David Humpherys | G53: 3 | H53: Paul Krauss' development team leading this integration
D54: Eloqua | E54: Marketing Automation | F54: David Humpherys | G54: 5 | H54: Eloqua email integration accredited; working to resolve some delivery issues for initial customers
D55: TeaLeaf | E55: Performance Management | F55: David Humpherys | G55: 1 | H55: Mellor following up with Joe Megibow
B56: H - Ongoing Effort Required | D56: CheetahMail | E56: Email Marketing | F56: Tim Hong | G56: 4 | H56: 6/15 Additional technical calls working towards them being standard 6/19 joint T&T discussion cancelled by Cheetahmail side need to reengage
D57: Salesforce.com | E57: CRM/SFA | F57: Tim Hong | G57: 3 | H57: Brent Watson engaged--working through setting up required test accounts--emailed Adam Greco to get update on their use of Genesis
D58: ExactTarget | E58: Email Marketing | F58: Tim Hong | G58: 5 | H58: 6/25-marketing plan meeting--working on joint campaigns to installed base-resolved FTP issues-delivered sandbox beta
D59: Responsys | E59: Email Marketing | F59: Tim Hong | G59: 5 | H59: 6/23-resolved ftp issues 6/24 Resolved ftp issues
D60: Foresee Results | E60: Survey / Customer Satisfaction Management | F60: David Humpherys | G60: 5 | H60: Lamont and ES working with ForeSee on incorporating new data collection standards and importing ForeSee customer scores; Foresee has made valuable contributions to the integration design
D61: Bazaarvoice | E61: Ratings and Reviews | F61: Tim Hong | G61: 3 | H61: 6/26Waiting for Watson response to BV demands
B62: E - Accreditation Queue | C62: III - Reactive Management | D62: WPP (DecideDNA) | E62: Search Marketing | F62: Aaron Watson | G62: 5 | H62: Watson to get update from Billy/Belkin on call with Mark Read last week.
D63: DoubleClick DFP (Google) | E63: Display Advertising / Ad Serving | F63: Aaron Watson | G63: 1 | H63: No status change other than Jeff Jordan in Prod Mgt has a customer (NBC) willing to reach out to DFP for us and demand integration.
D64: Atomic Labs | E64: Performance Management | F64: David Humpherys | G64: 4 | H64: Some traction from SAP on using the Atomic Labs integration; also from Toys R Us - coordinating impact with Trippany as TRU has contract through GSI
D65: SAP | E65: CRM/SFA | F65: Aaron Watson | G65: 3 | H65: Watson waiting on Mellor/Bayne for update or "green light"
D66: vTrenz (Silverpop) | E66: Marketing Automation | F66: Tim Hong | G66: 3 | H66: vTrenz now rebranded Silverpop Engage B2B, focusing on new APIs to integrate
B67: F - Accreditation In Progress | D67: DoubleClick Clickm@iler | E67: Email Marketing | F67: Tim Hong | G67: 4 | H67: Some issues with implementation, working with Ballam and Gibson to resolve
B68: G - Accreditation Complete | D68: iPerceptions | E68: Survey / Customer Satisfaction Management | F68: David Humpherys | G68: 5 | H68: Jerry Tarasofsky no longer with company ; iPerceptions integration moving forward at Dell, with iPerceptions developing against Omniture's new data collection standard for Customer Feedback integration
D69: Lithium | E69: Social Media | F69: David Humpherys | G69: 5 | H69: Parkin at Lithium user conference last week
B70: H - Ongoing Effort Required | D70: Endeca | E70: Site Search / Information Access | F70: Tim Hong | G70: 5 | H70: working through Endeca side of the integration-OMTR turned down opp to be premier partner in their partner program pr
D71: Silverpop | E71: Email Marketing | F71: Tim Hong | G71: 4 | H71: Major rebrand, now Silverpop Engage, focus on case studies.met with Chris Duskin 3/5 to push T@T
A73: Category | B73: Stage | C73: Priority | D73: Name | E73: Technology Type | F73: Strat Alliances | G73: Status (1 to 5) | H73: Comments
A74: Other Initiatives | B74: N/A | C74: I - Focused Management | D74: 2009 Partners/Sandbox | E74: N/A | F74: Aaron Watson | G74: 5 | H74: Sandbox launched and promoted to beta partners. Weekly meeting being held to monitor/measure.
D75: CMO Dashboard | E75: N/A | F75: Bryan Surles | G75: 5 | H75: Parkin running point.
D76: Partner Audit | E76: N/A | F76: Jay Biederman | G76: 5 | H76: Biederman completed. Will serve as basis for instance of SFDC.
D77: Prioritization | E77: N/A | F77: Aaron Watson | G77: 5 | H77: Weekly meeting between SA and GS to manage. Going well.
D78: System of Record | E78: N/A | F78: Aaron Watson | G78: 4 | H78: Watson compiling new "metrics" of measurement. Watson/Durham meeting this week now that quarter is over (connected with Patrick last week - he was completely unavailable).
D79: New Hires | E79: N/A | F79: Aaron Watson | G79: 5 | H79: No update.
D80: Partner Program | E80: N/A | F80: Aaron Watson | G80: 3 | H80: Triassi says no role in partner program - Mellor?
D81: Press Releases | E81: N/A | F81: Aaron Watson | G81: 5 | H81: Jamie sending weekly report
C82: II - Proactive Management | D82: Partner Onboarding Process | E82: N/A | F82: Tim Hong | G82: 2 | H82: Team pushing over to Scott Porter.
D83: OTF/Retargeting | E83: N/A | F83: David Humpherys | G83: 4 | H83: Aseem leading cross-func team (including Humpherys).
D84: Q2 Travel | E84: N/A | F84: Aaron Watson | G84: 5 | H84: Watson/Surles in NY this week.
A86: 1000 Partners (IN-PROCESS)
A87: Year | B87: Cumulative Count | C87: Name | D87: Tech Type | E87: Date Signed | F87: Fee | G87: Amount | H87: Comments
A88: 2005 - 2007 | B88: 100 | C88: Adform | D88: Display Advertising | E88: Pending Audit Details | F88: Yes | G88: 10000
A89: 2008 | B89: 204 | C89: Sprout Builder | D89: Widgets | E89: Pending Audit Details | F89: Yes | G89: 3500 | H89: Carry-over from year end push that included discount
A90: 2009 | B90: 216 | C90: The Freedom | D90: Video | E90: Pending Audit Details | F90: Yes | G90: 2000 | H90: Carry-over from year end push that included discount
C91: MediaPlex | D91: Display Advertising | E91: Pending Audit Details | F91: No | G91: 0 | H91: Carry-over from year end push that included discount
C92: Commission Junction | D92: Affiliate Marketing | E92: Pending Audit Details | F92: No | G92: 0 | H92: Carry-over from year end push that included discount
C93: Aprimo On-Demand | D93: Marketing Automation | E93: Pending Audit Details | F93: Pending Audit Details | G93: Pending Audit Details
C94: WPP: 24/7 RealMedia | D94: Display Advertising | E94: Pending Audit Details | F94: Pending Audit Details | G94: Pending Audit Details
C95: WPP: TNS-Compete | D95: Audience Measurement | E95: Pending Audit Details | F95: Pending Audit Details | G95: Pending Audit Details
C96: WPP: Kantar/TNS MI | D96: Offline Occurrence Data | E96: Pending Audit Details | F96: Pending Audit Details | G96: Pending Audit Details
C97: LiveWorld | D97: Social Media | E97: Pending Audit Details | F97: Yes | G97: 5000 | H97: Discount due to WPP connections
C98: Concep Global | D98: Email Marketing | E98: Pending Audit Details | F98: Yes | G98: 10000
C99: Premiere Global | D99: Email Marketing | E99: Pending Audit Details | F99: Yes | G99: 10000

Sheet New Client

Sheet Home Depot
A1: Genesis Strategic Partnerships (Potential BD Leads)
A3: Client: Home Depot
A5: Name | B5: Technology | C5: Status
A6: Vignette | B6: CMS | C6: H - Ongoing Effort Required
A7: Documentum | B7: CMS | C7: B - Contact Made
A8: Percussion Software | B8: CMS | C8: B - Contact Made
A9: RedDot | B9: CMS | C9: B - Contact Made
A10: PingV | B10: CMS | C10: C - Initial Call/Meeting
A11: IBM Websphere | B11: CMS | C11: D - Agreement Pending
A12: BayshoreSolutions | B12: CMS | C12: J - No Contact
A13: Platinum | B13: CMS | C13: J - No Contact
A14: Hot Banana | B14: CMS | C14: K - Not a Fit
A15: MSNBC | B15: CMS | C15: K - Not a Fit
A16: TextDigger | B16: SEO | C16: B - Contact Made
A17: Apogee Search | B17: SEO | C17: B - Contact Made
A18: Sitening | B18: SEO | C18: C - Initial Call/Meeting
A19: North America | B19: SEO | C19: 5 - N/A
A20: Conductor | B20: SEO | C20: E - Accreditation Queue
A21: OneUpWeb | B21: SEO | C21: J - No Contact
A22: Zunch | B22: SEO | C22: J - No Contact
A23: OrangeSoda | B23: SEO | C23: E - Accreditation Queue
A24: YourAmigo | B24: SEO | C24: G - Accreditation Complete
A25: TextDigger | B25: SEO | C25: B - Contact Made
A26: Email Direct | B26: Email Marketing | C26: B - Contact Made
A27: Goolara | B27: Email Marketing | C27: B - Contact Made
A28: Softvu | B28: Email Marketing | C28: B - Contact Made
A29: Blue Sky Factory | B29: Email Marketing | C29: B - Contact Made
A30: Boomerang | B30: Email Marketing | C30: B - Contact Made
A31: HookLogic | B31: Email Marketing | C31: B - Contact Made
A32: Leadfusion | B32: Email Marketing | C32: B - Contact Made
A33: Adestra | B33: Email Marketing | C33: C - Initial Call/Meeting
A34: Email Data Source | B34: Email Marketing | C34: C - Initial Call/Meeting
A35: eWay Direct | B35: Email Marketing | C35: C - Initial Call/Meeting
B36: Mobile
A37: Mojo | B37: Mobile | C37: B - Contact Made
A38: Flurry | B38: Mobile | C38: D - Agreement Pending
A39: Quattro | B39: Mobile | C39: D - Agreement Pending
A40: Service2Media | B40: Mobile | C40: D - Agreement Pending
A41: Bango | B41: Mobile | C41: E - Accreditation Queue
B42: Mobile
A43: Mojo | B43: Mobile | C43: B - Contact Made
A44: Flurry | B44: Mobile | C44: D - Agreement Pending
A45: Quattro | B45: Mobile | C45: D - Agreement Pending
A46: Coradiant | B46: Performance Management | C46: F - Accreditation In Progress
A47: Gomez | B47: Performance Management | C47: C - Initial Call/Meeting
A48: Keynote Systems | B48: Performance Management | C48: C - Initial Call/Meeting
A49: Atomic Labs | B49: Performance Management | C49: E - Accreditation Queue
A50: DotCom Monitor | B50: Performance Management | C50: E - Accreditation Queue
A51: Radware | B51: Performance Management | C51: E - Accreditation Queue
A52: TeaLeaf | B52: Performance Management | C52: F - Accreditation In Progress
A53: Coradiant | B53: Performance Management | C53: F - Accreditation In Progress
A54: Gomez | B54: Performance Management | C54: C - Initial Call/Meeting
A55: Keynote Systems | B55: Performance Management | C55: C - Initial Call/Meeting
